{"text_format":"1","workbook":"xlsx","n_sheets":24,"sheets":["Cover Page","Facility Info","Contents","Operational Data","Operational Summary","Perf. Form 1","Energy Form 1","Permit Compliance","Improvements","Public Liasion","CO2 N2O","Residue Quality ","Water","Air (periodic)","Air (CEMS)","NOx","SO2","HCl","TOC","Particulates","NH3","CO 95% 10 min","CO 0.5 hourly","Template changes log"],"not_rendered":{"charts":8,"images":3,"macros":1,"external_links":0,"defined_names":24,"comments":0,"pivot_tables":0},"unopened":[],"bounds":{"document_bytes":16777216,"sheet_cells":100000,"rows_first":2000,"rows_last":500,"rows_between":2000,"halvings":0,"cell_chars":16384,"cell_head_chars":4096},"cells_cut":0,"cells_raw":0,"read":"whole","date_system":"1900"}

{"sheet":"Cover Page","index":0,"n_rows":52,"n_cols":14,"rows_kept":52,"cut":false,"hidden":false,"merged":[[47,2,47,3],[47,6,47,8],[51,2,51,3],[35,1,35,8],[39,2,39,8],[41,2,41,4],[43,2,43,4],[45,2,45,3],[45,6,45,8],[13,13,18,15],[33,1,33,8],[0,3,5,6],[7,1,23,8],[27,1,27,8],[29,1,29,8],[31,1,31,8]]}
[null,null,null,"Add company logo"]
[null,null,null,null,null,null,null,null,null,null,null,null,null,"Version 24.2a (for incinerators) - 27/11/24"]
[]
[null,null,null,null,null,null,null,null,null,null,null,null,null,"Note that there is another version of this template available for co-incinerators"]
[]
[]
[]
[null,"Add photo"]
[]
[]
[]
[]
[null,null,null,null,null,null,null,null,null,null,null,null,null,"Notes:"]
[null,null,null,null,null,null,null,null,null,null,null,null,null,"This template may require adjustments by individual operators to meet specific reporting requirements as defined in the site Permit(s)"]
[]
[]
[]
[]
[]
[]
[]
[]
[]
[]
[]
[]
[]
[null,"Annual Performance Report 2024"]
[]
[null,"Permit EPR/XP3833DK"]
[]
[null,"Ferrybridge 2"]
[]
[]
[]
[null,"enfinium Ferrybridge 2 Ltd"]
[]
[null,"Year:",2024]
[]
[null,"Address:","Stranglands Lane, Knottingley, West Yorkshire, WF11 8SQ"]
[]
[null,"Tel: ","01977 636936"]
[]
[null,"Email: ","john.warren@enfinium.co.uk"]
[]
[null,"Prepared by:","John Warren",null,null,"Position:","Environmental Manager"]
[]
[null,"Approved by:","Adam Nicholson",null,null,"Position:","Plant Manager"]
[]
[null,"Version:",2]
[]
[null,"Issue Date:","2025-01-31"]

{"sheet":"Facility Info","index":1,"n_rows":52,"n_cols":11,"rows_kept":52,"cut":false,"hidden":false,"merged":[[4,0,15,8],[19,0,28,8],[4,10,13,13],[19,10,27,13]]}
[{"$f":"+'Cover Page'!$B$28","v":"Annual Performance Report 2024"},null,null,null,{"$f":"+'Cover Page'!$B$32","v":"Ferrybridge 2"}]
[]
["Plant Description and Design",null,null,null,null,null,null,null,null,null,"Notes:"]
[]
["Ferrybridge 2 is designed for the disposal of waste with energy recovery in an incineration plant and is permitted under Section 5.1 A(1)(b) the incineration of non-hazardous waste in an incineration plant with a capacity exceeding 3 tonnes per hour. The installation is located on land to the north of Ferrybridge 1 site, close to the A1(M). It lies approximately 1km northwest of the village of Ferrybridge, 2km northwest of Knottingley, 1.8km southeast of Ferry Fryston, and 3km northeast of Pontefract, at grid reference SE 472 254. The facility has a throughput limit of 725,000 tonnes per year of waste which can include refuse derived fuel, waste wood and commercial and industrial waste. The facility consists of two combustion lines and generates approximately 80 MWe of electricity, of which approximately 73 MWe is exported. Moving grate technology is used for burning the waste material. The furnace design ensures that a temperature of at least 850 degrees celcius for a period of at least two seconds is achieved in the combustion chamber. Auxillary burners firing a low sulphur gas oil are automatically triggered by online process monitoring equipment are used to ensure the temperature does not fall below 850 degrees celcius. Hot gases from the furnace pass in a boiler. Steam raised in the boiler is passed to a turbine to generate electricity for export to the National Grid.",null,null,null,null,null,null,null,null,null,"Include summary of plant design, design capacity, no. of combustion lines, electrical and heat capacity and any other general information that describes the facility, its location and purpose "]
[]
[]
[]
[]
[]
[]
[]
[]
[]
[]
[]
[]
["Summary of Operational Processes and Procedures"]
[]
["Key processes include waste reception, waste storage, water use, drainage, flue gas and air supply systems, boilers, treatment of exhaust gases, treatment and storage of residues and water recycling, stacks, devices and systems for controlling incineration operations, recording and monitoring conditions. The site has an Environmental Management System accredited to ISO 14001.  \n\nHealth and Safety management system covering all aspects of health and safety comprising policy, procedures, risk assessments, Key Performance Indicators (KPIs) and objectives reviewed periodically. The site has accreditation to ISO 45001:2018 for Health & Safety Management and ISO 9001 for Quality Management.\n\nMaintenance across the facilities is broken down in to reactive (breakdown) maintenance, and planned preventive maintenance. Preventive maintenance is conducted via the philosophy of Risk Based Inspections to ensure the safety of personnel and availability of the plant is cost effectively maintained.",null,null,null,null,null,null,null,null,null,"Include summary of key processes and procedures such as (but not limited to); waste reception, control rooms, grate, bed and boiler, energy & heat  generation, cooling systems, residue management, emission controls, health and safety systems, maintenance"]
[]
[]
[]
[]
[]
[]
[]
[]
[]
[]
[]
[]
[]
[]
[]
[]
[]
[]
[]
[]
[]
[]
[]
[]
[]
[]
[]
[]
[]
[]
[]
[null,null,"2025-01-31"]

{"sheet":"Contents","index":2,"n_rows":52,"n_cols":11,"rows_kept":52,"cut":false,"hidden":false,"merged":[[42,0,45,9],[35,1,35,6],[37,1,37,6],[38,1,38,6],[39,1,39,6],[40,1,40,6],[34,1,34,6],[21,1,21,6],[22,1,22,6],[23,1,23,6],[25,1,25,6],[26,1,26,6],[27,1,27,6],[28,1,28,6],[29,1,29,6],[30,1,30,6],[33,1,33,6],[20,1,20,6],[9,1,9,6],[10,1,10,6],[11,1,11,6],[13,1,13,6],[14,1,14,6],[15,1,15,6],[16,1,16,6],[17,1,17,6],[18,1,18,6],[19,1,19,6],[12,1,12,6],[4,10,7,14],[8,1,8,6],[3,1,3,6],[4,1,4,6],[5,1,5,6],[6,1,6,6],[7,1,7,6]]}
[{"$f":"+'Cover Page'!$B$28","v":"Annual Performance Report 2024"},null,null,null,{"$f":"+'Cover Page'!$B$32","v":"Ferrybridge 2"}]
[]
["Contents",null,null,null,null,null,null,null,null,null,"Notes:"]
["Section","Subject",null,null,null,null,null,"Page ",null,null,"Section references and Page nos. to be inserted"]
[null,"Facility Information",null,null,null,null,null,2,null,null,"Sections and Subjects may require adjustment by individual operators to meet specific reporting requirements as defined in the sites Permit(s)"]
[null,"Operational Data",null,null,null,null,null,4]
[null,"Operational Summary",null,null,null,null,null,6]
[null,"Performance Form 1",null,null,null,null,null,10]
[null,"Energy Form 1",null,null,null,null,null,12]
[null,"Permit Compliance",null,null,null,null,null,13]
[null,"Improvements",null,null,null,null,null,15]
[null,"Public Liaison",null,null,null,null,null,16]
[null,"Carbon dioxide and nitrous oxide emissions",null,null,null,null,null,17]
[null,"Residue Quality ",null,null,null,null,null,18]
[null,"Emissions to Water",null,null,null,null,null,19]
[null,"Emissions to Air (periodically monitored)",null,null,null,null,null,20]
[null,"Emissions to Air (continuously monitored)",null,null,null,null,null,22]
[null,"Oxides of Nitrogen emissions",null,null,null,null,null,23]
[null,"Sulphur Dioxide emissions",null,null,null,null,null,24]
[null,"Hydrogen Chloride emissions",null,null,null,null,null,25]
[null,"Total Organic Carbon emissions",null,null,null,null,null,26]
[null,"Particulate Matter emissions",null,null,null,null,null,27]
[null,"Ammonia emissions",null,null,null,null,null,28]
[null,"Carbon Monoxide emissions",null,null,null,null,null,29]
["Version Control"]
["Section","Information",null,null,null,null,null,"Date"]
[]
[]
[]
[]
[]
[]
["Distribution"]
["Copy","Name, Role",null,null,null,null,null,"No."]
[]
[]
[]
[]
[]
[]
[]
[]
["This report is required under the Industrial Emissions Directive’s Article 55(2) requirements on reporting and public information on waste incineration plants and co-incineration plants, which require the operator to produce an annual report on the functioning and monitoring of the plant and make it available to the public. "]
[]
[]
[]
[]
[]
[]
[]
[]
[null,null,"2025-01-31"]

{"sheet":"Operational Data","index":3,"n_rows":53,"n_cols":10,"rows_kept":53,"cut":false,"hidden":false,"merged":[[46,0,47,0],[5,9,6,9],[20,1,35,1],[3,1,3,2],[7,1,8,1],[12,1,15,1],[7,9,9,9],[10,9,14,9]]}
[{"$f":"+'Cover Page'!$B$28","v":"Annual Performance Report 2024"},null,null,null,{"$f":"+'Cover Page'!$B$32","v":"Ferrybridge 2"}]
[]
["Operational Data"]
["Plant Size",725000,null,"tonnes pa",80,"MWth",73,"MWe",null,"Notes:"]
["No. of combustion lines",2,null,"No. of Turbines:",null,1,null,null,null,"* - RDF to include SRF "]
[null,null,null,null,null,null,null,null,null,"** - Combusted tonnage = tonnes delivered in period + (tonnes in bunker at start of period – tonnes in bunker at end of period), or equivalent calculation depending on plant type"]
["Waste types received","Unit","Q1","Q2","Q3","Q4","Year Total","%"]
["Refuse Derived Fuel * - H'hold/LA",null,170141.18,175064.6,174990.92,148042.64000000001,{"$f":"SUM(C8:F8)","v":668239.34000000008},{"$f":"IF(G8>0,G8/$G$9,\"-\")","v":1}]
["Total waste received",null,{"$f":"SUM(C8:C8)","v":170141.18},{"$f":"SUM(D8:D8)","v":175064.6},{"$f":"SUM(E8:E8)","v":174990.92},{"$f":"SUM(F8:F8)","v":148042.64000000001},{"$f":"SUM(C9:F9)","v":668239.34000000008}]
["Total waste combusted **",null,170791.66,174341.43,174654.67,149794.57999999999,{"$f":"SUM(C10:F10)","v":669582.34}]
[null,null,null,null,null,null,null,null,null,"Password for protected cells\nA password has been set to prevent accidental  editing of cells with formulae. \nIf you still need to make an edit for some reason then the password = 1234"]
["Energy Usage / Export","Unit","Q1","Q2","Q3","Q4","Year Total","KWh/te"]
["Power Generated","MWh",170072.6,176877.89,177798.54,124980.05,{"$f":"SUM(C13:F13)","v":649729.08000000007},{"$f":"IF(G13>0,G13*1000/$G$10,\"-\")","v":970.34978550957624}]
["Power Exported",null,154707,160606,161802,117826,{"$f":"SUM(C14:F14)","v":594941},{"$f":"IF(G14>0,G14*1000/$G$10,\"-\")","v":888.52552473232799}]
["Power Used on site",null,{"$f":"C13-C14","v":15365.600000000006},{"$f":"D13-D14","v":16271.890000000014},15996.540000000008,7154.0500000000029,{"$f":"SUM(C15:F15)","v":54788.080000000031},{"$f":"IF(G15>0,G15*1000/$G$10,\"-\")","v":81.824260777248142}]
["Power Imported",null,102.98,0,28.71,2193.4499999999998,2325.14,{"$f":"IF(G16>0,G16*1000/$G$10,\"-\")","v":3.4725228864309656}]
["Parasitic Load","%",{"$f":"IF(C13>0,1-C14/(C13+C16),\"-\")","v":9.0897765707629863E-2},{"$f":"IF(D13>0,1-D14/(D13+D16),\"-\")","v":9.199504810917869E-2},{"$f":"IF(E13>0,1-E14/(E13+E16),\"-\")","v":9.0116953391564003E-2},{"$f":"IF(F13>0,1-F14/(F13+F16),\"-\")","v":7.3501948125985317E-2},{"$f":"IF(G13>0,1-G14/(G13+G16),\"-\")","v":8.7589679275444476E-2}]
["R1 value (if applicable)","R1",null,null,null,null,0.86]
[]
["Waste Disposal & Recovery","Unit","Q1","Q2","Q3","Q4","Year Total","% inputs"]
["APC Residues - produced","tonnes",7641.92,7675.36,7020.9,6066.86,{"$f":"SUM(C21:F21)","v":28405.040000000001},{"$f":"IF(G21>0,G21/$G$10,\"-\")","v":4.2422026841388918E-2}]
["APCr filter bags",null,6.02,10.92,0,0,{"$f":"SUM(C22:F22)","v":16.939999999999998},{"$f":"IF(G22>0,G22/$G$10,\"-\")","v":2.5299353026544873E-5}]
["Oil contaminated solid waste",null,0,4.4000000000000004,5.5,0,{"$f":"SUM(C23:F23)","v":9.9},1.4785336184344409E-5]
["Waste oil",null,0.97899999999999998,1.5,0,2.3140000000000001,4.7930000000000001,7.1581935688447221E-6]
["Fluorescent tubes",null,0,0.08,0,0,0.08,1.1947746411591441E-7]
[null,null,null,null,null,null,0,"-"]
["IBA - produced",null,30528.07,33719.24,35321.79,27659.01,127228.11,0.19001114933825763]
["Ferrous metals from bottom ash",null,2325.46,2555.6,2485.2800000000002,2113.7600000000002,9480.1,1.4158228844566004E-2]
["Metals",null,7.66,1.5,0,33.22,42.379999999999995,6.3293186615405656E-5]
["Mixed packaging",null,0.48,0.4,0.38,0.6,1.8599999999999999,2.77785104069501E-6]
["Mixed municipal waste",null,6.06,7.12,7.1,20.260000000000002,40.540000000000006,6.0545204940739635E-5]
["Wood waste",null,2.1800000000000002,1.1000000000000001,1.98,2.84,8.1,1.2097093241736334E-5]
["Rubble",null,13.42,0,29.22,67.8,110.44,1.6493863921201985E-4]
["Sewage waste",null,0,5.28,6.14,67.5,78.92,1.1786451835034958E-4]
["Waste Electrical and Electronic Equipment",null,0,4,0,0,4,5.9738732057957203E-6]
["Activated carbon waste from wastewater treatment",null,0,0.94,0,0,0.94,1.4038602033619943E-6]
[]
["Raw Material Usage","Unit","Q1","Q2","Q3","Q4","Year Total","kg or Ltr /te"]
["Mains Water","ltrs",13050.9,8912,16193.5,15525,{"$f":"SUM(C39:F39)","v":53681.4},{"$f":"IF(G39>0,G39/$G$10,\"-\")","v":8.0171469277400598E-2}]
["Other Water","ltrs",22422.9,26543.26,19850.150000000001,18419.46,87235.76999999999,{"$f":"IF(G40>0,G40/$G$10,\"-\")","v":0.13028385724748953}]
["Ammonia","kgs",46805.55,44015.26,44284.959999999999,31137.49,166243.25999999998,0.24827903913953284]
["Activated Carbon","kgs",55508,61153.33,68097.5,46113.54,230872.37000000002,0.34480056627538896]
["Lime / hydrated lime","kgs",3530039,3747909,3322260,2706470,13306678,19.873101790587846]
["Fuel oil","ltrs",156496.07,56313.42,102191.19,547762.28,862762.96,1.2885091324242512]
[]
["Summary ","Line/Unit","Q1","Q2","Q3","Q4","Year Total",null,"Hrs in year "]
["Availability of waste combustion by line, hrs ****",1,2086,2184,2208,1836,{"$f":"SUM(C47:F47)","v":8314},{"$f":"+G47/$I$47","v":0.94649362477231325},8784,"Change this figure to 8784 in a leap year"]
[null,2,2065.8000000000002,2137.6999999999998,2206.6999999999998,1816.8999999999999,8227.1,{"$f":"+G48/$I$47","v":0.93660063752276868}]
["Overall Availability, mean avg. of all lines, hrs",null,{"$f":"AVERAGE(C47:C48)","v":2075.9},{"$f":"AVERAGE(D47:D48)","v":2160.85},2207.35,1826.4499999999998,{"$f":"AVERAGE(G47:G48)","v":8270.5499999999993},0.94154713114754085]
["Hours of turbine operations, hrs",1,2159.6,2184,2201.5,1675,8220.1,0.93580373406193085]
["Net Calorific Value of waste","MJ/kg",12,12,12,12,{"$f":"AVERAGE(C51:F51)","v":12}]
["Abnormal Events","qty.",0,0,0,1,1,{"$f":"IF(G52>0,\"yes\",\"no\")","v":"yes"}]
["Permit Breaches","qty.",0,0,0,0,0,{"$f":"IF(G53>0,\"yes\",\"no\")","v":"no"}]

{"sheet":"Operational Summary","index":4,"n_rows":52,"n_cols":11,"rows_kept":52,"cut":false,"hidden":false,"merged":[[4,0,10,8],[4,10,9,13],[14,10,14,13],[18,1,18,8],[17,1,17,8],[14,0,14,8],[18,10,27,13],[27,1,27,8],[23,1,23,8],[19,1,19,8],[20,1,20,8],[21,1,21,8],[22,1,22,8],[24,1,24,8],[25,1,25,8],[26,1,26,8]]}
[{"$f":"+'Cover Page'!$B$28","v":"Annual Performance Report 2024"},null,null,null,{"$f":"+'Cover Page'!$B$32","v":"Ferrybridge 2"}]
[]
["Summary of Plant Operations and Maintenance during the reporting year",null,null,null,null,null,null,null,null,null,"Notes:"]
[]
["Key Operational Activities\nJanuary – Turbine trip & loss of both boilers (turbine drains pump issues)\nJanuary – Turbine trip (turbine drains pump issues)\nFebruary - Line 2 Boiler planned shutdown (Pit stop)\nMarch - Line 1 Boiler planned shutdown (Pit stop)\nMay – Line 2 Boiler trip (ID fan trip due furnace over pressurisation)\nJuly – Line 1 Boiler trip (ID fan trip due furnace over pressurisation)\nJuly – Turbine trip & loss of Line 1 boiler (turbine drains pump issues)\nSeptember - Ash Cranes Master PLC comms error\nOctober – Major outage\nOctober – Boiler Trip (loss of air compressors)\nNovember – Blanking plate removal\nDecember - Turbine trip (cable fault on vibration sensor)\n\nKey Maintenance Activities\n\nJANUARY\n•\tWaste crane 2 umbilical change\n•\tWaste grab full overhaul\n•\tTurbine drains pumps replaced\n•\tLine 2 division wall tube repair\n•\tACC structural beam repair due to deflection from adverse weather conditions\n\nFEBRUARY\n•\tWaste crane 2 rope replacement\n•\tGrab petal repairs and replacements\n•\tLoad bank earth fault rectified\n•\tUK fire, fire system servicing\n•\tLine 2 pitstop\n•\tElement 22 replaced\n•\tPrimary air fan motor replacement\n•\tBurner service and overhaul\n\nMARCH\n•\tLine 1 fabric filter bags replaced\n•\tWaste and ash crane LOLER inspections\n•\tLine 1 pitstop\n•\tElement 12 replaced\n•\tID fan motor replaced\n•\tCombustion fan VFD maintenance\n\nAPRIL\n•\tLoad bank feeder 3 siprotec unit replaced\n•\tWaste grab full overhaul\n•\tACC thermography check with drone\n•\tStatutory lift inspections\n\nMAY\n•\tDrier servicing\n•\tFeed pump number 4 servicing\n•\tWaste grab petal repairs\n•\tVibrating bed mounts repaired\n•\tWaste crane DVDT filter replaced\n•\tVibrating conveyor damper bushes replaced\n\nJUNE\n•\tVibrating conveyor damper bushes replaced\n•\tWaste crane invertor replaced\n•\tRapper cylinder maintenance strategy commenced\n•\tWaste crane life expectancy report carried out\n•\tEmergency lighting inspection\n•\tLine 2 missing refractory tiles on the 1st pass replaced with spray.\n\nJULY\n•\tDefective end stop on waste crane 2 gantry replaced\n•\tUPS2 Battery replacement\n•\tUPS1 Battery replacement\n•\tDemin tank shell repairs\n\nAUGUST\n•\tPSSR intermediate inspections\n•\tWaste cane 2 umbilical replaced\n•\tFire system service\n•\tWaste crane grab overhaul\n\nSEPTEMBER\nNone\n\nOCTOBER\nMajor outage\nLine 1 – Mechanical \n•\tFull clean and inspection of internal boiler/furnace gas path. \n•\tBunker side furnace nozzle “Y” piece replacements and material upgrade to SS316\n•\t3rd pass LHS wall thermal spray application (26m-32m)\n•\tNDT checks on boiler as part of the maintenance strategy – Vertex model\n•\tSuperheater sections 3.1 and 2.2 leading 2 rows replaced\n•\tInspection of mechanical grate on lines 1 and 2 inclusive of minor repairs.  \n•\tEco screw replacement\n•\tReactor screw replacement\n•\tPass 1 - Lower 2 rows of airflow refractory tiles replaced. NDT carried out pre replacement\n•\tPass 1 - Upper 2 rows of air flow refractory tiles replaced. NDT carried out pre replacement\n•\tPass 1 - General refractory maintenance carried out. Defective areas replaced.\n•\tBoiler access door shelves refractory reinstated\n•\tInspections of site wide safety valves and test certs provided.\n•\tThorough statutory inspections carried out as per PSSR WSE.\n\n\n\n•\tFull inspection and overhaul of ancillary plant equipment inclusive of Ash, FGT, APCR systems.\n•\tSite wide valve inspections and repairs.\n•\tEco 6 support brace replaced\n•\tGrate elements 22 and 23 replaced\n•\tInconel repairs carried out to furnace side walls, front and rear.\n•\tFluidised bed membranes replaced\n•\tPrimary air fan motor replaced\n•\tSecondary air fan motor replaced\n•\tMaintenance strategy carried out on line 1 ID fan. Full overhaul.\n•\tDetailed ATEX area inspection, intrusive of all parts associated with the PAC system\n•\tStatutory stack inspections\n•\tRam feeder hydraulics replaced as part of maintenance strategy\n•\tDefective grate rams replaced\n•\tFeed hopper internal plates replaced\n•\t2nd and 3rd pass conveyor replacement\n•\tSupertheater conveyor replacement\n \nLine 1 – Electrical\n•\tTransformer and LV Board Maintenance - Annual maintenance of Transformer, and LV Boards within a substation. \n•\tCircuit breaker service and protection testing\n•\tQuantum VFD service - The service included a general clean down, filter cleaning, terminal tightness, visual inspection, and module phase alignment.\n•\tTransmitter calibrations \n•\t400VDC UPS service and Inspection\n•\tActuator servicing and health checks\n\nLine 2 – Mechanical \n•\tFull clean and inspection of internal boiler/furnace gas path. \n•\tBunker side furnace nozzle “Y” piece replacements and material upgrade to SS316\n•\t3rd pass LHS wall thermal spray application (26m-32m). Small area on the front wall.\n•\tNDT checks on boiler as part of the maintenance strategy – Vertex model\n•\tSuperheater sections 3.1 leading 2 rows replaced\n•\tInspection of mechanical grate on lines 1 and 2 inclusive of minor repairs.  \n•\tEco screw replacement\n•\tReactor screw replacement\n•\tPass 1 - Lower 2 rows of airflow refractory tiles replaced. NDT carried out pre replacement\n•\tPass 1 - Upper 2 rows of air flow refractory tiles replaced. NDT carried out pre replacement\n•\tPass 1 - General refractory maintenance carried out. Defective areas replaced.\n•\tBoiler access door shelves refractory reinstated\n•\tInspections of site wide safety valves and test certs provided.\n•\tThorough statutory inspections carried out as per PSSR WSE.\n•\tFull inspection and overhaul of ancillary plant equipment inclusive of Ash, FGT, APCR systems.\n•\tSite wide valve inspections and repairs.\n•\tInconel repairs carried out to furnace side walls, front and rear.\n•\tFluidised bed membranes replaced\n•\tSecondary air fan motor replaced\n•\tDetailed ATEX area inspection, intrusive of all parts associated with the PAC system\n•\tStatutory stack inspections\n•\tWalking floor hydraulic ram replaced\n•\tDefective grate rams replaced\n•\tFeed hopper internal plates replaced\n•\t2nd and 3rd pass conveyor replacement\n•\tSupertheater conveyor replacement\n\nLine 2 – Electrical \n•\tTransformer and LV Board Maintenance - Annual maintenance of Transformer, and LV Boards within a substation. \n•\tCircuit breaker service and protection testing \n•\tQuantum VFD service - The service included a general clean down, filter cleaning, terminal tightness, visual inspection, and module phase alignment. \n•\tTransmitter calibrations \n•\t400VDC UPS service and Inspection \n•\tValmet upgrades DCS\n\n\n\n\nCommon – Mechanical\n•\tTurbine outage as per strategy completed inclusive of the generator\n•\tTurbine bypass valve internals replaced, line 1 and line 2\n•\tTurbine lube oil tank service carried out – Inspection and filter replacements\n\n Common– Electrical \n•\tTransformer and LV Board Maintenance - Annual maintenance of Transformer, and LV Boards within a substation. \n•\tCircuit breaker service and protection testing \n•\tQuantum VFD service - The service included a general clean down, filter cleaning, terminal tightness, visual inspection, and module phase alignment. \n•\tTransmitter calibrations \n•\tIPB testing\n\nNOVEMBER\n•\tLine 2 blowdown heat exchanger elements replaced\n•\tEG10 SV4 servicing\n•\tFuel oil tanks had corrosion mapping NDT carried out\n•\tUpgraded fuel oil skid installed with new pumps. Duty/Standby\n•\tWaste crane petal repairs carried out\n•\tHot tru testing carried out on boiler safety valves. Boiler drum and superheater.\n•\tSite wide compressor major servicing commenced\n\nDECEMBER\n•\tFeed pump 3 mech seal replaced\n•\tAmesa B probes project commenced\n•\tWeightron replaced weighbridge number 2\n\n",null,null,null,null,null,null,null,null,null,"Include summary of key operational and/or maintenance activity undertaken in the year, such as any major component upgrades and/or replacements "]
[]
[]
[]
[]
[]
[]
[]
["Summary of Residue Handling for the reporting year"]
[]
["Incinerator Bottom Ash (IBA) from Ferrybridge 2 is stored in the Ash Bunker and then outloaded by the ash crane grab to receiving dumper trucks. Since operations began in 2019, the IBA has been collected and taken to the Blue Phoenix Ferrybridge site which is adjacent to the north of the Ferrybridge 2 site. Movement of the IBA is carried out by dumper truck via a predominantly internal road network to the Blue Phoenix site where it is processed into Incinerator Bottom Ash Aggregate (IBAA).\n\nAPCr is collected in silos and then discharged to receiving tanker for off-site disposal. The APCr is transported to OCO Technology and occasionally to Castle Environmental Ltd. Castle Environmental receives APCr at two sites located in Ilkeston (Derbyshire) and Stoke on Trent, whereas OCO Technology has one site located in Leeds. Castle Environmental currently recycles approximately 70% of the APCr whereas OCO Technology recycles 100%.",null,null,null,null,null,null,null,null,null,"Include in here a summary of residue handling regimes and destinations "]
[]
[]
[{"$f":"+'Cover Page'!C38","v":2024},"Plant shut-downs"]
["Date","Reason for shut-down",null,null,null,null,null,null,null,null,"Provide a very brief reason for plant shut-down e.g. \"Shut-down prior to major outage\"; \"Emergency shut-down due to boiler tube leak\"\n\nThere is no need to include periods of hot-standby here (e.g. to clear feed chute hopper blockages).\n\nFor clinical waste incinerators which require regular shut-downs for boiler cleaning, there is no need to record these here. "]
["2024-01-07","Lines A1 and A2 off due to turbine trip."]
["2024-02-05","Line A2 off from 05/02/24 to 09/02/24 for maintenance outage."]
["2024-03-04","Line A1 off from 04/03/24 to 07/03/24 for maintenance outage."]
["2024-06-24","Line A2 off for repairs to the boiler refractory lining."]
["2024-10-08","Line A1 off from 08/10/24 to 21/10/24 due to maintenance outage."]
["2024-10-16","Line A2 off from 16/10/24 to 29/10/24 due to maintenance outage."]
["2024-11-02","Line A1 off to allow removal of turbine blanking plate."]
["2024-11-02","Line A2 off to allow removal of turbine blanking plate."]
["2024-12-15","Line A2 off due to ash extractor blockage."]
[]
[]
[]
[]
[]
[]
[]
[]
[]
[]
[]
[]
[]
[]
[]
[]
[]
[]
[]
[]
[]
[]
[]
[null,null,"2025-01-31"]

{"sheet":"Perf. Form 1","index":5,"n_rows":58,"n_cols":10,"rows_kept":58,"cut":false,"hidden":false,"merged":[[22,8,22,9],[23,8,23,9],[24,8,24,9],[25,8,25,9],[41,0,41,3],[41,4,41,5],[41,7,41,8],[39,0,39,3],[39,4,39,5],[39,7,39,8],[40,0,40,3],[40,4,40,5],[40,7,40,8],[29,0,29,3],[29,4,29,5],[29,6,29,7],[29,8,29,9],[31,0,31,9],[32,0,33,9],[27,0,27,1],[27,2,27,3],[27,4,27,5],[27,6,27,7],[27,8,27,9],[51,0,51,1],[53,0,53,9],[54,0,55,9],[43,0,43,9],[44,0,45,9],[48,0,48,1],[50,0,50,1],[48,2,48,4],[36,7,36,8],[37,0,37,3],[37,4,37,5],[37,7,37,8],[38,0,38,3],[38,4,38,5],[38,7,38,8],[42,7,42,8],[42,4,42,5],[42,0,42,3],[28,0,28,3],[28,4,28,5],[28,6,28,7],[28,8,28,9],[21,0,21,1],[21,2,21,3],[21,4,21,5],[21,6,21,7],[21,8,21,9],[26,0,26,1],[26,2,26,3],[26,4,26,5],[26,6,26,7],[26,8,26,9],[22,0,22,1],[23,0,23,1],[24,0,24,1],[25,0,25,1],[22,2,22,3],[23,2,23,3],[24,2,24,3],[25,2,25,3],[22,4,22,5],[23,4,23,5],[24,4,24,5],[25,4,25,5],[22,6,22,7],[23,6,23,7],[19,0,19,1],[19,2,19,3],[19,4,19,5],[19,6,19,7],[24,6,24,7],[25,6,25,7],[19,8,19,9],[20,0,20,1],[20,2,20,3],[20,4,20,5],[20,6,20,7],[20,8,20,9],[17,0,17,1],[17,2,17,3],[17,4,17,5],[17,6,17,7],[17,8,17,9],[18,0,18,9],[15,0,15,1],[15,2,15,3],[15,4,15,5],[15,6,15,7],[15,8,15,9],[16,0,16,3],[16,4,16,5],[16,6,16,7],[16,8,16,9],[11,0,11,1],[11,2,11,3],[11,4,11,5],[11,6,11,7],[11,8,11,9],[14,0,14,1],[14,2,14,3],[14,4,14,5],[14,6,14,7],[14,8,14,9],[12,8,12,9],[13,8,13,9],[12,6,12,7],[13,6,13,7],[12,4,12,5],[13,4,13,5],[12,2,12,3],[13,2,13,3],[12,0,12,1],[13,0,13,1],[9,0,9,9],[10,0,10,1],[10,2,10,3],[10,4,10,5],[10,6,10,7],[10,8,10,9],[2,0,2,4],[2,6,2,8],[3,1,3,4],[5,3,5,4],[5,6,5,7],[8,0,8,1],[8,2,8,3],[8,4,8,5],[8,6,8,7],[8,8,8,9]]}
[{"$f":"+'Cover Page'!C38","v":2024}," Annual Reporting Performance Form 1"]
[]
[{"$f":"+'Cover Page'!B30","v":"Permit EPR/XP3833DK"},null,null,null,null,"Operator: ",{"$f":"+'Cover Page'!B36","v":"enfinium Ferrybridge 2 Ltd"}]
["Facility:",{"$f":"+'Cover Page'!B32:I32","v":"Ferrybridge 2"},null,null,null,"Form:","Performance 1"]
[]
["Reporting  Period from: ",null,null,"2024-01-01",null,"to:","2024-12-31"]
[]
[{"$f":"+A1","v":2024},"Annual Reporting of Waste Disposal and Recovery"]
["Waste Description",null,"Disposal Route(s)",null,"Disposal Tonnes",null,"Recovery Tonnes",null,"% / tonne of waste incinerated"]
["1) Hazardous Wastes"]
["APC Residues",null,"D9/R5",null,1131.18,null,27273.86,null,{"$f":"IF((E11+G11)>0,(E11+G11)/'Operational Data'!$G$10, \"-\")","v":4.2422026841388918E-2}]
["APCr filter bags",null,"D15",null,16.940000000000001,null,null,null,{"$f":"IF((E12+G12)>0,(E12+G12)/'Operational Data'!$G$10, \"-\")","v":2.5299353026544879E-5}]
["Oil contaminated solid waste",null,"R13",null,null,null,9.9,null,{"$f":"IF((E13+G13)>0,(E13+G13)/'Operational Data'!$G$10, \"-\")","v":1.4785336184344409E-5}]
["Waste oil",null,"R13",null,null,null,4.7930000000000001,null,{"$f":"IF((E14+G14)>0,(E14+G14)/'Operational Data'!$G$10, \"-\")","v":7.1581935688447221E-6}]
["Fluorescent tubes",null,"R13",null,null,null,0.08,null,{"$f":"IF((E15+G15)>0,(E15+G15)/'Operational Data'!$G$10, \"-\")","v":1.1947746411591441E-7}]
["Waste batteries",null,"R13",null,null,null,0.38500000000000001,null,{"$f":"IF((E16+G16)>0,(E16+G16)/'Operational Data'!$G$10, \"-\")","v":5.7498529605783808E-7}]
["Total Hazardous Waste",null,null,null,{"$f":"SUM(E11:F16)","v":1148.1200000000001},null,{"$f":"SUM(G11:H16)","v":27289.018000000004},null,{"$f":"IF((E17+G17)>0,(E17+G17)/'Operational Data'!$G$10, \"-\")","v":4.2469964186928832E-2}]
[]
["2) Non-Hazardous Wastes"]
["IBA - produced",null,"R5",null,null,null,127228.11,null,{"$f":"IF((E20+G20)>0,(E20+G20)/'Operational Data'!$G$10, \"-\")","v":0.19001114933825763}]
["Ferrous metals from bottom ash",null,"R4",null,null,null,9480.1,null,{"$f":"IF((E21+G21)>0,(E21+G21)/'Operational Data'!$G$10, \"-\")","v":1.4158228844566004E-2}]
["Metals",null,"R4",null,null,null,42.379999999999995,null,{"$f":"IF((E22+G22)>0,(E22+G22)/'Operational Data'!$G$10, \"-\")","v":6.3293186615405656E-5}]
["Mixed packaging",null,"R13",null,null,null,1.8599999999999999,null,{"$f":"IF((E23+G23)>0,(E23+G23)/'Operational Data'!$G$10, \"-\")","v":2.77785104069501E-6}]
["Mixed municipal waste",null,"R13",null,null,null,40.540000000000006,null,{"$f":"IF((E24+G24)>0,(E24+G24)/'Operational Data'!$G$10, \"-\")","v":6.0545204940739635E-5}]
["Wood waste",null,"R3",null,null,null,8.1,null,{"$f":"IF((E25+G25)>0,(E25+G25)/'Operational Data'!$G$10, \"-\")","v":1.2097093241736334E-5}]
["Sewage waste",null,"D8",null,null,null,78.92,null,{"$f":"IF((E26+G26)>0,(E26+G26)/'Operational Data'!$G$10, \"-\")","v":1.1786451835034958E-4}]
["Waste Electrical and Electronic Equipment",null,"R13",null,null,null,4,null,{"$f":"IF((E27+G27)>0,(E27+G27)/'Operational Data'!$G$10, \"-\")","v":5.9738732057957203E-6}]
["Activated carbon waste from wastewater treatment",null,"D15",null,0.94,null,null,null,{"$f":"IF((E28+G28)>0,(E28+G28)/'Operational Data'!$G$10, \"-\")","v":1.4038602033619943E-6}]
["Total Non-Hazardous Waste",null,null,null,{"$f":"SUM(E20:F28)","v":0.94},null,{"$f":"SUM(G20:H28)","v":136884.01},null,{"$f":"IF((E29+G29)>0,(E29+G29)/'Operational Data'!$G$10, \"-\")","v":0.20443333377042175}]
["TOTAL WASTE",null,null,null,{"$f":"+E29+E17","v":1149.0600000000002},null,{"$f":"+G29+G17","v":164173.02800000002},null,{"$f":"IF((E30+G30)>0,(E30+G30)/'Operational Data'!$G$10, \"-\")","v":0.24690329795735058}]
[]
["Operator’s comments :"]
[]
[]
[]
[{"$f":"+A1","v":2024},"Annual Reporting of Water and Other Raw Material Usage"]
["Raw Material",null,null,null,"Usage",null,"Unit","Specific Usage",null,"Unit"]
["Mains Water",null,null,null,53681.4,null,"m3",{"$f":"IF(E38>0,E38/'Operational Data'!$G$10,\"-\")","v":8.0171469277400598E-2},null,"m3/te"]
["Total Water",null,null,null,{"$f":"+'Operational Data'!G40+'Operational Data'!G39/1000","v":87289.451399999991},null,"m3",{"$f":"IF(E39>0,E39/'Operational Data'!$G$10,\"-\")","v":0.13036402871676692},null,"m3/te"]
["Urea / Ammonia",null,null,null,{"$f":"+'Operational Data'!G41","v":166243.25999999998},null,"kg",{"$f":"IF(E40>0,E40/'Operational Data'!$G$10,\"-\")","v":0.24827903913953284},null,"kg/te"]
["Activated Carbon",null,null,null,{"$f":"+'Operational Data'!G42","v":230872.37000000002},null,"kg",{"$f":"IF(E41>0,E41/'Operational Data'!$G$10,\"-\")","v":0.34480056627538896},null,"kg/te"]
["Lime / hydrated lime / Sodium Bicarb.",null,null,null,{"$f":"+'Operational Data'!G43","v":13306678},null,"kg",{"$f":"IF(E42>0,E42/'Operational Data'!$G$10,\"-\")","v":19.873101790587846},null,"kg/te"]
[]
["Operator’s comments :"]
[]
[]
[]
[{"$f":"+A36","v":2024},"Annual Reporting of other performance indicators "]
["Parameter",null,"Results by Line"]
[null,null,"A1","A2","Turbine 1"]
["Operating hours for the year, hours",null,8314,8227.1,8220.1]
["Cumulative hours of abnormal operation for this year, hours",null,0,0.5,0]
[]
["Operator’s comments :"]
[]
[]
[]
["Signed: ",null,null,null,null,null,"Date:"]

{"sheet":"Energy Form 1","index":6,"n_rows":52,"n_cols":7,"rows_kept":52,"cut":false,"hidden":false,"merged":[[14,0,14,8],[15,0,16,8],[11,0,11,2],[11,3,11,4],[11,6,11,8],[12,0,12,2],[12,3,12,4],[12,6,12,8],[9,0,9,2],[9,3,9,4],[9,6,9,8],[10,0,10,2],[10,3,10,4],[10,6,10,8],[2,6,2,8],[4,1,4,4],[6,3,6,4],[6,6,6,7],[8,0,8,2],[8,3,8,4],[8,6,8,8]]}
[{"$f":"+'Cover Page'!C38","v":2024}," Annual Reporting of Energy Usage/Export"]
[]
[{"$f":"+'Cover Page'!B30","v":"Permit EPR/XP3833DK"},null,null,null,null,"Operator: ",{"$f":"+'Cover Page'!B36","v":"enfinium Ferrybridge 2 Ltd"}]
[]
["Facility:",{"$f":"+'Cover Page'!B32:I32","v":"Ferrybridge 2"},null,null,null,"Form:","Energy 1"]
[]
["Reporting  Period from: ",null,null,{"$f":"+'Perf. Form 1'!D6:E6","v":"2024-01-01"},null,"to:",{"$f":"+'Perf. Form 1'!G6:H6","v":"2024-12-31"}]
[]
["Energy Source",null,null,"Energy Usage",null,"Unit","Specific Usage (KWh/tonne incinerated"]
["Electricity Produced",null,null,{"$f":"+'Operational Data'!G13","v":649729.08000000007},null,"MWh",{"$f":"+'Operational Data'!H13","v":970.34978550957624}]
["Electricity Imported   ",null,null,{"$f":"+'Operational Data'!G16","v":2325.14},null,"MWh",{"$f":"+'Operational Data'!H16","v":3.4725228864309656}]
["Electricity Exported",null,null,{"$f":"+'Operational Data'!G14","v":594941},null,"MWh",{"$f":"+'Operational Data'!H14","v":888.52552473232799}]
["Gas Oil",null,null,715.23,null,"tonnes",{"$f":"+'Operational Data'!H15","v":81.824260777248142}]
[]
["Operator’s comments :"]
[]
[]
[]
[]
[]
[]
[]
[]
[]
[]
[]
[]
[]
[]
[]
[]
[]
[]
[]
[]
[]
[]
[]
[]
[]
[]
[]
[]
[]
[]
[]
[]
[]
[]
[]
[]
[null,null,"2025-01-31"]

{"sheet":"Permit Compliance","index":7,"n_rows":52,"n_cols":12,"rows_kept":52,"cut":false,"hidden":false,"merged":[[22,3,22,5],[37,1,37,3],[37,4,37,6],[37,7,37,9],[38,1,38,3],[38,4,38,6],[38,7,38,9],[35,1,35,3],[35,4,35,6],[35,7,35,9],[36,1,36,3],[36,4,36,6],[36,7,36,9],[18,1,18,2],[18,3,18,5],[20,3,20,5],[21,3,21,5],[34,1,34,3],[34,4,34,6],[23,0,23,8],[33,1,33,3],[33,4,33,6],[33,7,33,9],[30,1,30,3],[30,4,30,6],[30,7,30,9],[31,1,31,3],[31,4,31,6],[31,7,31,9],[8,11,19,11],[27,0,27,10],[17,0,17,10],[32,1,32,3],[32,4,32,6],[32,7,32,9],[28,1,28,3],[28,4,28,6],[28,7,28,9],[29,1,29,3],[29,4,29,6],[29,7,29,9],[21,1,21,2],[14,0,14,1],[14,2,14,4],[20,1,20,2],[7,0,7,1],[7,2,7,8],[8,0,8,1],[8,2,8,4],[8,5,8,8],[9,0,9,1],[9,2,9,4],[9,5,9,8],[10,0,10,1],[10,2,10,4],[10,5,10,8],[13,0,13,1],[13,2,13,4],[13,5,13,8],[34,7,34,9],[11,0,11,1],[11,2,11,4],[11,5,11,8],[12,0,12,1],[12,2,12,4],[12,5,12,8],[14,5,14,8],[15,0,15,1],[15,2,15,4],[15,5,15,8],[22,1,22,2],[18,7,18,8]]}
[{"$f":"+'Cover Page'!$B$28","v":"Annual Performance Report 2024"},null,null,null,{"$f":"+'Cover Page'!$B$32","v":"Ferrybridge 2"}]
[]
["Summary of Permit Compliance"]
[]
["Compliance with permit limits for continuously monitored pollutants"]
[]
["The plant met its emission limits as shown in the table below:"]
["Substance",null,"Percentage time compliant during operationNote 1",null,null,null,null,null,null,null,null,"Notes:"]
[null,null,"Half-hourly limit",null,null,"Daily limit",null,null,null,null,null,"Note 1: Please report to 2 decimal places, i.e. xx.xx%\n\nNote 2: Please enter into this table any permit non-compliances that the EA has given a CCS score for. Please also enter any other non-compliances which you have notified to the EA (e.g. ELV exceedances) but which have not yet been assessed by the EA. There is no need to enter any notifications which were subsequently assessed by the EA not to be permit breaches.  \n\nNote 3: Please enter information here (rather than just referencing the notifications that were sent to the EA) including where relevant the incineration line reference, pollutant and value of the measured result for any ELV exceedances.   \n\n"]
["Particulates",null,0.98619999999999997,null,null,0.98629999999999995]
["Oxides of nitrogen",null,1,null,null,1]
["Sulphur dioxide",null,1,null,null,1]
["Carbon monoxide",null,"100.00% of 95% of 10-min averages",null,null,1]
["Total organic carbon",null,1,null,null,1]
["Hydrogen chloride",null,1,null,null,0.99450000000000005]
["Ammonia",null,1,null,null,1]
[]
["Summary of non-compliances under the permit Note 2"]
["Date","Summary of non-compliance Note 3",null,"Reason ",null,null,"Measures taken to prevent reoccurrence","CCS score if applicable*"]
[null,null,null,null,null,null,null,"Impact","Root cause"]
["2024-04-25","Exceedance of particulate emission limit value. following a furnace trip.",null,"Occurred due to incorrect counting of elevated readings after waste feed had ceased.",null,null,"Immediate cessation of waste feed."]
["2024-09-16","Quantity of particulates emitted from Line A1 and A2.",null,"Occurred due to incorrect seating of dust probe in stack.",null,null,"Dust probe seating rectified immediaely, instructions issued to CEMS engineers to complete acceptance forms before leaving site."]
["2024-11-06","Exceedance of dust 30-minute average and HCl daily average emission limit values.",null,"Occurred following full plant trip of Lines A1, A2 and turbine.",null,null,"Immediate cessation of waste feed."]
["*If the Environment Agency (EA) has given a Compliance Classification Scheme (CCS) score due to a permit non-compliance it should be entered here (CCS4 = No impact; CCS3 = Minor impact; CCS2 = Significant impact; CCS1 = Major impact). If the EA has not yet assessed a non-compliance which you have notified to them, these columns should be left blank. Enter N/A if no score was given for the root cause.  "]
[]
[]
[]
["Summary of any complaints received and actions to taken to resolve them."]
["Date","Summary of complaint [including Line/Reference]",null,null,"Reason (including whether substantiated by the operator or the EA)",null,null,"Measures taken to prevent reoccurrence"]
["2024-01-04","External complaint posted to Ferrybridge Facility webpage about a smell of smoke and odour around the facilities.",null,null,"Unsubstantiated",null,null,"Discussed at morning meeting, report sent to EA confirming operational activities at the time."]
["2024-01-05","External complaint via Environment Agency about a burning/chemical smell first noticed on 5th January and again on 7th January.",null,null,"Unsubstantiated",null,null,"Discussed at morning meeting, report sent to EA confirming operational activities at the time."]
["2024-01-08","External complaint received via the Environment Agency about a burning/chemical smell noticed at 10:06hrs on 08/01/24.",null,null,"Unsubstantiated",null,null,"Discussed at morning meeting, report sent to EA confirming operational activities at the time."]
["2024-01-08","External complaint received via the Environment Agency about dust covering local vehicles. Also reports of vibrations and noise from site, duration described as intermittent but ongoing.",null,null,"Unsubstantiated",null,null,"Discussed at morning meeting, report sent to EA confirming operational activities at the time."]
["2024-02-05","External complaint to enfinium website queries about queuing RDF delivery lorries on Kirkhaw Lane.",null,null,"Unsubstantiated",null,null,"Discussed at morning meeting, traffic management reviewed and monitoring showed traffic queues much reduced. Email sent to complainant."]
["2024-02-28","External complaint received about littering on A162.",null,null,"Unsubstantiated",null,null,"Discussed at morning meeting, fuel team contacted all fuel suppliers to ensure their delivery vehicles do not deposit material onto the highways."]
["2024-03-30","External complaint about queuing RDF delivery vehicles on Kirkhaw Lane.",null,null,"Unsubstantiated",null,null,"Discussed at morning meeting, raised with plant managers and fuel tem. New driver sanctions and provision of information sent to delivery drivers. Email sent to complainant."]
["2024-09-26","One complaint received from Wakefield Council Highways regarding queuing RDF delivery vehicles on the A162.",null,null,"Unsubstantiated",null,null,"Discussed at morning meeting, plant manager contacted complainant, issues discussed at Transport Liaison Group meeting."]
["2024-10-04","External complaint about RDF delivery vehicles queuing on Kirkhaw Lane before 7am.",null,null,"Unsubstantiated",null,null,"Discussed at morning meeting, monitoring carried out, complainant contacted."]
["2024-10-16","External complaint received from the Environment Agency about noise from site activities.",null,null,"Unsubstantiated",null,null,"Discussed at morning meeting, report sent to EA confirming operational activities at the time."]
[]
[]
[]
[]
[]
[]
[]
[]
[]
[]
[]
[]
[null,null,"2025-01-31"]

{"sheet":"Improvements","index":8,"n_rows":52,"n_cols":5,"rows_kept":52,"cut":false,"hidden":false,"merged":[[24,0,25,8],[23,0,23,8],[4,0,4,8],[5,0,13,8],[15,0,15,8],[16,0,17,8],[19,0,19,8],[20,0,21,8]]}
[{"$f":"+'Cover Page'!$B$28","v":"Annual Performance Report 2024"},null,null,null,{"$f":"+'Cover Page'!$B$32","v":"Ferrybridge 2"}]
[]
["Summary of Plant Improvements"]
[]
["Summary of any efficiency improvements that have been completed within the year."]
["Line 1 ID fan motor replacement\nLine 1 economiser and reactor screw replacement\nLine 1 primary air fan motor replacement\nLine 1 secondary air fan motor replacement\nLine 2 primary air fan motor replacement\nLine 2 economiser and reactor screw replacement\nLine 2 secondary air fan motor replacement\nACC cleaning\n\n"]
[]
[]
[]
[]
[]
[]
[]
[]
[]
["Summary of any permit improvement conditions that have been completed within the year and the resulting environmental benefits."]
["None"]
[]
[]
["Summary of any changes to the plant or operating techniques which required a variation to the permit and a summary of the resulting environmental impact."]
["None"]
[]
[]
["Summary of any other improvements made to the plant or planned to be made and a summary of the resulting environmental benefits."]
["None"]
[]
[]
[]
[]
[]
[]
[]
[]
[]
[]
[]
[]
[]
[]
[]
[]
[]
[]
[]
[]
[]
[]
[]
[]
[]
[]
[null,null,"2025-01-31"]

{"sheet":"Public Liasion","index":9,"n_rows":52,"n_cols":5,"rows_kept":52,"cut":false,"hidden":false,"merged":[[16,0,16,8],[13,0,14,1],[13,2,14,8],[12,0,12,1],[12,2,12,8],[11,0,11,8],[5,0,5,1],[5,2,5,8],[6,0,7,1],[6,2,7,8],[8,0,9,1],[8,2,9,8]]}
[{"$f":"+'Cover Page'!$B$28","v":"Annual Performance Report 2024"},null,null,null,{"$f":"+'Cover Page'!$B$32","v":"Ferrybridge 2"}]
[]
["Details of Public & Stakeholder Liaison"]
[]
["Summary of events held during the reporting year."]
["Date",null,"Description"]
["2024-06-14",null,"Transport Liaison Group meeting"]
[]
["2024-11-21",null,"Transport Liaison Group meeting"]
[]
[]
["List of events planned for next year"]
["Date",null,"Description"]
["Q2 2024, Q4 2024",null,"Transport liaison group meetings to continue bi-annually, dates to be confirmed."]
[]
[]
["If you wish to be involved in the public liaison programme, please contact John Warren"]
[]
[]
[]
[]
[]
[]
[]
[]
[]
[]
[]
[]
[]
[]
[]
[]
[]
[]
[]
[]
[]
[]
[]
[]
[]
[]
[]
[]
[]
[]
[]
[]
[]
[]
[null,null,"2025-01-31"]

{"sheet":"CO2 N2O","index":10,"n_rows":52,"n_cols":6,"rows_kept":52,"cut":false,"hidden":false,"merged":[[25,1,25,3],[2,1,2,3],[9,1,9,3],[13,1,13,3],[17,1,17,3],[22,2,22,3],[16,2,16,3],[8,2,8,3],[11,2,11,3],[19,2,19,3],[4,1,4,3]]}
[null,{"$f":"+'Cover Page'!$B$28","v":"Annual Performance Report 2024"},{"$f":"+'Cover Page'!$B$32","v":"Ferrybridge 2"}]
[]
[null,"Carbon dioxide emissions and biogenic content of waste inputs",null,null,null,"Notes:"]
[]
[null,"Carbon dioxide emissions (all types of plant)"]
[null,"Annual mass of carbon dioxide released","tonnes ",729514]
[null,"Annual mass of carbon dioxide released per tonne of waste burned","t CO2 / t waste ",1.0900000000000001]
[null,"Annual mass of carbon dioxide released per MWh of energy exported","t CO2 / MWh export ",1.23]
[null,"Description of how annual carbon dioxide mass emission has been calculated. See Note 1","CEMS CO2% calculated via Annual mass emissions report and converted into kg",null,null,"Note 1: All permits require operators to continuously monitor CO2 to EN14181 and flow to BS EN 16911-2 (unless otherwise agreed in writing). Operators must therefore use the results from these instruments to calculate their annual CO2 emissions. Where an operator does not have a flow meter calibrated to BS EN 16911-2, the averaged flow measurement from that year's periodic monitoring can be used instead. If the plant does not have calibrated CO2 CEMS, a suitably justified emissions factor can be used."]
[null,"Nitrous oxide emissions (only plants which use ammonia or urea to abate NOx emissions)"]
[null,"Annual mass emissions of nitrous oxide","tonnes N2O",3.0270000000000001]
[null,"Description of how annual nitrous oxide mass emission has been calculated. See Note 2","CEMS data has been used to calculate the mass emissions",null,null,"Note 2: All permits require operators to continuously monitor N2O to EN14181 and flow to BS EN 16911-2, unless otherwise agreed in writing. Operators must therefore use the results from these instruments to calculate their annual N2O emissions. Where an operator does not have a flow meter calibrated to BS EN 16911-2, the averaged flow measurement from periodic monitoring can be used instead. If the plant does not have calibrated N2O CEMS, data from periodic monitoring or a suitably justified emissions factor can be used instead."]
[null,"Total annual carbon dioxide + nitrous oxide emissions. See Note 3. ","tonnes CO2e",729517,null,"Note 3: Total annual carbon dioxide and nitrous oxide emissions reported as carbon dioxide equivalent where 1 tonne nitrous oxide is equivalent to 265 tonnes carbon dioxide."]
[null,"Biogenic CO2 emissions (See Note 4)",null,null,null,"Note 4: Only plants combusting residual municipal waste, refuse derived fuel or solid recovered fuel need complete this section. "]
[null,"Percentage of total carbon dioxide emissions arising from biogenic waste","%",0.57299999999999995]
[null,"No. of measurements undertaken","Number",302]
[null,"Description of how percentage biogenic carbon dioxide emissions have been measured or calculated. See Note 5","Calculated from lab analysis via a UKAS accredited method ISO 216:2021.",null,null,"Note 5: The results from C14 sampling should be used if this is carried out at the plant (either via an installed sampler or from spot samples).  \nOtherwise, as an approximation (and in lieu of any more accurate metrics which may be developed in future), the measured or estimated biogenic fraction by net calorific value (see Note 6) can be assumed to be the same as the biogenic CO2 fraction of the total CO2 emissions from the plant. "]
[null,"Biogenic fraction of waste feedstock (See Note 4)"]
[null,"Yearly average biogenic percentage of the waste by net calorific value (NCV)","%",0.57399999999999995]
[null,"Description of how biogenic percentage (by NCV) has been calculated or estimated. \nSee Note 6","From fuel model which takes weighbridge data and RDF test results sampled at source (calculated from lab analysis via a UKAS accredited method ISO 21644:2021), then weights each suppliers tonnage on a heat input basis.",null,null,"Note 6: If C14 sampling is carried out at the plant, the methodology set out in the embedded document entitled \"Renewable Energy Association Energy Content of Fuels - Description of Method\" embedded below can be used to calculate the biogenic percentage by net calorific value. Otherwise, data from waste sampling or BIOMA software can be used; or if none of these are available, an estimated figure with justification or a figure assumed on the basis of up-to-date industry data can be used. "]
[null,"Yearly average biogenic percentage of the waste by mass","%",0.61899999999999999]
[null,"If waste sampling undertaken, no. of samples used to ascertain average biogenic percentages above","Number",222]
[null,"Description of how biogenic percentage (by mass) has been calculated or estimated. \nSee Note 7","From fuel model which takes weighbridge data and RDF test results sampled at source (calculated from lab analysis via a UKAS accredited method ISO 21644:2021), then weights each suppliers tonnage on a heat input basis.",null,null,"Note 7: Where available, data from waste sampling should be used; otherwise, an estimated figure with justification can be used, or a figure assumed on the basis of up-to-date industry data. "]
[]
[null,"Comments:"]
[null,"The numbers for waste sampling and biogenic content are provisional and based on an incomplete dataset, as some data is still waiting to be received."]
[]
[]
[]
[]
[]
[]
[]
[]
[]
[]
[]
[]
[]
[]
[]
[]
[]
[]
[]
[]
[]
[]
[]
[]
[]
[null,null,"2025-01-31"]

{"sheet":"Residue Quality ","index":11,"n_rows":52,"n_cols":6,"rows_kept":52,"cut":false,"hidden":false,"merged":[[23,0,24,6],[19,3,19,4],[22,0,22,6],[14,0,15,1],[16,0,16,1],[17,0,17,1],[18,0,18,1],[19,0,19,1],[16,3,16,4],[17,3,17,4],[16,5,16,6],[17,5,17,6],[18,5,18,6],[19,5,19,6],[20,0,20,6],[18,3,18,4],[14,2,15,2],[15,3,15,4],[15,5,15,6],[14,3,14,6],[13,0,13,6],[5,0,6,6],[10,0,11,1],[10,2,11,6],[8,0,8,6],[9,0,9,1],[9,2,9,6]]}
[{"$f":"+'Cover Page'!$B$28","v":"Annual Performance Report 2024"},null,null,null,{"$f":"+'Cover Page'!$B$32","v":"Ferrybridge 2"}]
[]
["Residue Quality Monitoring Requirements"]
[]
["Summary of monitoring undertaken and compliance"]
["Monthly IBA hazard assessments and annual full hazardous property assessments, quarterly IBA and APC residue compliance monitoring, annual characterisation of IBA and APC residue. Analysis and reporting carried out by WRc."]
[]
[]
["Commentary on any specific events"]
["Date & Event",null,"Description"]
["October 2024 - IBA and APC Annual Characterisation Report",null,"Results of the annual characterisation of IBA and APC residues from Ferrybridge 2, including a full hazardous property assessment of IBA as required by the ESA Protocol 2018."]
[]
[]
["Residue Quality Monitoring Results"]
["Parameter (unit) ",null,"Limit*","Normal Operation "]
[null,null,null,"Bottom ash  ",null,"APC Residues"]
["Loss on Ignition (average %)",null,"<5%",1.1375]
["Total Organic Carbon (average %)",null,"<3%",0.57499999999999996]
["No. of Assessments Undertaken",null,"---",24,null,4]
["No. of Hazardous Results",null,"---",0]
["* The permit will specify a limit of either 5% loss on ignition or 3% total organic carbon. If both are measured anyway, please enter the results here, even where the limit does not apply. "]
[]
["Comments :"]
[]
[]
[]
[]
[]
[]
[]
[]
[]
[]
[]
[]
[]
[]
[]
[]
[]
[]
[]
[]
[]
[]
[]
[]
[]
[]
[]
[]
[null,null,"2025-01-31"]

{"sheet":"Water","index":12,"n_rows":52,"n_cols":9,"rows_kept":52,"cut":false,"hidden":false,"merged":[[5,0,6,8],[8,0,8,8],[9,0,9,1],[9,2,9,8],[15,0,15,2],[13,0,13,8],[14,0,14,2],[14,3,14,4],[10,0,11,1],[10,2,11,8]]}
[{"$f":"+'Cover Page'!$B$28","v":"Annual Performance Report 2024"},null,null,null,{"$f":"+'Cover Page'!$B$32","v":"Ferrybridge 2"}]
[]
["Emissions to Water"]
[]
["Summary of monitoring undertaken and compliance"]
["Frequent sampling and analysis of attenuation pond water, tested for pH and conductivity, odour and appearance prior to discharge to Fryston Beck. No issues identified in 2024.\t\t\t\t\t\t\t\t"]
[]
[]
["Commentary on any specific events"]
["Date & Event",null,"Description"]
["N/A",null,"N/A"]
[]
[]
["Emissions to Water / Sewer"]
["Parameter",null,null,"Monitoring Frequency",null,"Limit","Target","Max.","Average"]
["No parameters set in permit",null,null,"None",null,"None","None","None","None"]
[]
[]
[]
[]
[]
[]
[]
[]
[]
[]
[]
[]
[]
[]
[]
[]
[]
[]
[]
[]
[]
[]
[]
[]
[]
[]
[]
[]
[]
[]
[]
[]
[]
[]
[]
[null,null,"2025-01-31"]

{"sheet":"Air (periodic)","index":13,"n_rows":56,"n_cols":7,"rows_kept":56,"cut":false,"hidden":false,"merged":[[55,0,55,6],[56,0,57,6],[5,0,6,6],[4,0,4,6],[53,0,53,1],[53,3,53,4],[54,0,54,1],[54,3,54,4],[50,0,50,1],[50,3,50,4],[51,0,51,1],[51,3,51,4],[48,0,48,1],[48,3,48,4],[45,0,45,1],[45,3,45,4],[48,7,49,7],[48,8,49,8],[48,9,49,9],[49,0,49,1],[49,3,49,4],[46,0,46,1],[46,3,46,4],[46,7,47,9],[47,0,47,1],[47,3,47,4],[41,0,41,6],[42,0,43,1],[42,2,43,2],[42,3,43,4],[42,7,44,9],[44,0,44,1],[44,3,44,4],[38,0,39,6],[8,0,8,6],[13,7,14,9],[15,7,16,7],[15,8,16,8],[15,9,16,9],[18,3,18,4],[13,3,13,4],[14,3,14,4],[15,3,15,4],[16,3,16,4],[17,3,17,4],[21,3,21,4],[22,3,22,4],[23,3,23,4],[19,0,19,1],[30,3,30,4],[25,3,25,4],[31,3,31,4],[26,3,26,4],[32,3,32,4],[27,3,27,4],[33,3,33,4],[34,3,34,4],[32,0,32,1],[33,0,33,1],[34,0,34,1],[24,0,24,1],[25,0,25,1],[19,3,19,4],[20,3,20,4],[22,0,22,1],[23,0,23,1],[24,3,24,4],[20,0,20,1],[21,0,21,1],[28,0,28,1],[29,0,29,1],[30,0,30,1],[31,0,31,1],[35,0,35,1],[9,7,11,9],[11,0,11,1],[13,0,13,1],[14,0,14,1],[15,0,15,1],[12,0,12,1],[11,3,11,4],[12,3,12,4],[52,0,52,1],[52,3,52,4],[37,0,37,1],[9,0,10,1],[9,3,10,4],[9,2,10,2],[36,3,36,4],[28,3,28,4],[29,3,29,4],[35,3,35,4],[16,0,16,1],[17,0,17,1],[18,0,18,1],[36,0,36,1],[26,0,26,1],[27,0,27,1]]}
[{"$f":"+'Cover Page'!$B$28","v":"Annual Performance Report 2024"},null,null,null,{"$f":"+'Cover Page'!$B$32","v":"Ferrybridge 2"}]
[]
["Emissions to Air (periodically monitored)"]
[]
["Summary of monitoring undertaken, standards used and compliance"]
["Bi-annual monitoring undertaken in March 2024 and November 2024. Standards used include EN 14385, MID 14385, EN 1948, ISO 11338, ISO 15713, EN 14789, TGN M22 and EN 16911-1 (MID). H1 test results from March 2024 and H2 test results from November 2024 demonstrated full compliance with emission limit values."]
[]
[]
["Results of emissions to air that are periodically monitored - oxygen reference 11% "]
["Substance",null,"Ref. Period","Emission Limit Value",null,"Average"]
[null,null,null,null,null,"A1","A2"]
["Hydrogen fluoride",null,"1 hr","1 mg/m3",null,5.3999999999999999E-2,5.1999999999999998E-2]
["Cd and Tl and their compounds",null,"0.5-8hrs","0.02 mg/m3",null,1.2999999999999999E-3,1.2999999999999999E-3]
["Hg and its compounds",null,"0.5-8hrs","0.02 mg/m3",null,2E-3,1.8E-3]
["Sb, As, Pb, Cr, Co, Cu, Mn, Ni, V and their compounds",null,"0.5-8hrs","0.3 mg/m3",null,2.5999999999999999E-2,5.5E-2]
["Dioxins & Furans (I-TEQ)",null,"6-8hrs","0.06 ng/m3",null,2.1999999999999999E-2,2.5999999999999999E-2]
["PCBs (WHO-TEQ Humans / Mammals)",null,"6-8hrs","None set ng/m3",null,2.7000000000000001E-3,1.1999999999999999E-3]
["PCBs (WHO-TEQ Fish)",null,"6-8hrs","None set ng/m3",null,1.2E-4,2.7E-2]
["PCBs (WHO-TEQ Birds)",null,"6-8hrs","None set ng/m3",null,5.1999999999999998E-3,2.7000000000000001E-3]
["Dioxins & Furans (WHO-TEQ Humans / Mammals)",null,"6-8hrs","None set ng/m3",null,1.9E-2,2.3E-2]
["Dioxins & Furans (WHO-TEQ Fish)",null,"6-8hrs","None set ng/m3",null,2.1000000000000001E-2,2.7E-2]
["Dioxins & Furans (WHO-TEQ Birds)",null,"6-8hrs","None set ng/m3",null,3.4000000000000002E-2,4.9000000000000002E-2]
["Anthanthrene",null,"6-8hrs","None set µg/m3",null,"<0.0016","<0.0017"]
["Benzo(a)anthracene",null,"6-8hrs","None set µg/m3",null,"<0.0016","<0.0017"]
["Benzo(a)pyrene",null,"6-8hrs","None set µg/m3",null,"<0.0016","<0.0017"]
["Benzo(b)naptho(2,1-d) thiophene",null,"6-8hrs","None set µg/m3",null,"<0.0016","<0.0017"]
["Benzo(c)phenanthrene",null,"6-8hrs","None set µg/m3",null,"<0.0016","<0.0017"]
["Benzo(ghi)perylene",null,"6-8hrs","None set µg/m3",null,7.1999999999999998E-3,3.0000000000000001E-3]
["Benzo(k)fluoranthene",null,"6-8hrs","None set µg/m3",null,"<0.0016","<0.0017"]
["Cholanthrene",null,"6-8hrs","None set µg/m3",null,"<0.0016","<0.0017"]
["Chrysene",null,"6-8hrs","None set µg/m3",null,1.6000000000000001E-3,2.8E-3]
["Cyclopenta(cd)pyrene",null,"6-8hrs","None set µg/m3",null,"<0.0016","<0.0017"]
["Dibenzo(ai)pyrene",null,"6-8hrs","None set µg/m3",null,"<0.0016","<0.0017"]
["Dibenzo(ah)anthracene",null,"6-8hrs","None set µg/m3",null,"<0.0016","<0.0017"]
["Fluoranthene",null,"6-8hrs","None set µg/m3",null,4.1000000000000002E-2,0.19]
["Indeno(123-cd) pyrene",null,"6-8hrs","None set µg/m3",null,"<0.0016","<0.0017"]
["Naphthalene",null,"6-8hrs","None set µg/m3",null,0.41,0.18770000000000001]
["Comments :"]
[]
[]
[]
["Results of emissions to air that are periodically monitored - oxygen reference 11% "]
["Substance",null,"Ref. Period","Emission Limit Value",null,"Average"]
[null,null,null,null,null,"A1","A2"]
["Hydrogen fluoride",null,"1 hr","1 mg/m3",null,4.3999999999999997E-2,4.3999999999999997E-2]
["Cd and Tl and their compounds",null,"0.5-8hrs","0.02 mg/m3",null,9.6000000000000002E-4,1E-3]
["Hg and its compounds",null,"0.5-8hrs","0.02 mg/m3",null,2E-3,2.0999999999999999E-3]
["Sb, As, Pb, Cr, Co, Cu, Mn, Ni, V and their compounds",null,"0.5-8hrs","0.3 mg/m3",null,1.7000000000000001E-2,2.1000000000000001E-2]
["Dioxins & Furans (I-TEQ)",null,"6-8hrs","0.06 ng/m3",null,5.0000000000000001E-3,1.4999999999999999E-2]
["PCBs (WHO-TEQ Humans / Mammals)",null,"6-8hrs","None set ng/m3",null,3.4000000000000002E-4,3.5000000000000001E-3]
["PCBs (WHO-TEQ Fish)",null,"6-8hrs","None set ng/m3",null,1.8E-5,1.8000000000000001E-4]
["PCBs (WHO-TEQ Birds)",null,"6-8hrs","None set ng/m3",null,1.1999999999999999E-3,7.0000000000000001E-3]
["Dioxins & Furans (WHO-TEQ Humans / Mammals)",null,"6-8hrs","None set ng/m2"]
["Dioxins & Furans (WHO-TEQ Fish)",null,"6-8hrs","None set ng/m3",null,5.1000000000000004E-3,1.6E-2]
["Dioxins & Furans (WHO-TEQ Birds)",null,"6-8hrs","None set ng/m3",null,1.2E-2,3.7999999999999999E-2]
["Comments :"]

{"sheet":"Air (CEMS)","index":14,"n_rows":52,"n_cols":8,"rows_kept":52,"cut":false,"hidden":false,"merged":[[4,0,4,6],[27,0,28,6],[13,0,14,0],[10,0,10,6],[11,0,12,0],[11,2,12,2],[11,1,12,1],[11,3,11,4],[11,5,11,6],[25,0,25,6],[5,0,8,6],[26,0,26,6]]}
[{"$f":"+'Cover Page'!$B$28","v":"Annual Performance Report 2024"}]
[]
["Emissions to Air (continuously monitored)"]
[null,null,null,null,null,null,null,"Notes:"]
["Summary of monitoring undertaken, standards used and compliance",null,null,null,null,null,null,"Template may require adjustment for any bespoke monitoring requirements of permit"]
["Continuous emissions monitoring of Oxides of Nitrogen, Sulphur Dioxide, Hydrogen Chloride, Total Organic Carbon, Particulates, Ammonia and Carbon Monoxide (also Flow, O2, N2O) to EN14181. Instruments used PCME QAL 181, Environement SA MIR FT multigas analyser and Graphite 52M Flame Ionisation Detector (FID). All results demonstrate 100% compliance with the daily emission limit values. All results (except particulates due to abnormal operations conditions) demonstrate 100% compliance with 1/2 hour average emission limit values.",null,null,null,null,null,null,"Please check that all default ELV values match those for your plant and edit if necessary!"]
[null,null,null,null,null,null,null,"Report to 1 decimal place"]
[]
[]
[]
["Results of emissions to air that are continuously monitored (maximum and average values for each line) - oxygen reference 11%"]
["Substance","Reference Period","Emission Limit Value","A1",null,"A2"]
[null,null,null,"Max.","Avg.","Max.","Avg."]
["Oxides of nitrogen","Daily mean","180 mg/m3 ",{"$f":"NOx!O19","v":172.38},{"$f":"NOx!N19","v":164.38},{"$f":"NOx!O33","v":175.11},{"$f":"NOx!N33","v":166.30727272727273}]
[null,"½ hourly mean","400 mg/m3 ",{"$f":"NOx!M19","v":211},{"$f":"NOx!L19","v":164.41666666666666},{"$f":"NOx!M33","v":364},{"$f":"NOx!L33","v":166.36363636363637}]
["Particulates","Daily mean","5 mg/m3",{"$f":"Particulates!O19","v":3.66},{"$f":"Particulates!N19","v":0.745},{"$f":"Particulates!O33","v":1.93},{"$f":"Particulates!N33","v":0.43181818181818182}]
[null,"½ hourly mean","30 mg/m3 ",{"$f":"Particulates!M19","v":8},{"$f":"Particulates!L19","v":1},{"$f":"Particulates!M33","v":60},{"$f":"Particulates!L33","v":0.27272727272727271}]
["Total Organic Carbon ","Daily mean","10 mg/m3 ",{"$f":"TOC!O19","v":0.98},{"$f":"TOC!N19","v":0.2558333333333333},{"$f":"TOC!O33","v":0.68},{"$f":"TOC!N33","v":0.25727272727272726}]
[null,"½ hourly mean","20 mg/m3 ",{"$f":"TOC!M19","v":5},{"$f":"TOC!L19","v":0.25},{"$f":"TOC!M33","v":13},{"$f":"TOC!L33","v":0}]
["Hydrogen chloride ","Daily mean","8 mg/m3 ",{"$f":"HCl!O19","v":7.93},{"$f":"HCl!N19","v":6.5566666666666675},{"$f":"HCl!O33","v":8.15},{"$f":"HCl!N33","v":6.6681818181818189}]
[null,"½ hourly mean","60 mg/m3 ",{"$f":"HCl!M19","v":13},{"$f":"HCl!L19","v":6.583333333333333},{"$f":"HCl!M33","v":44},{"$f":"HCl!L33","v":6.6363636363636367}]
["Sulphur dioxide","Daily mean","40 mg/m3 ",{"$f":"'SO2'!O19","v":2.4500000000000002},{"$f":"'SO2'!N19","v":0.42666666666666669},{"$f":"'SO2'!O33","v":2.19},{"$f":"'SO2'!N33","v":0.37545454545454537}]
[null,"½ hourly mean","200 mg/m3 ",{"$f":"'SO2'!M19","v":27},{"$f":"'SO2'!L19","v":0.33333333333333331},{"$f":"'SO2'!M33","v":37},{"$f":"'SO2'!L33","v":0.36363636363636365}]
["Carbon monoxide ","Daily mean","50 mg/m3 ",{"$f":"'CO 95% 10 min'!Q20","v":9.26},{"$f":"'CO 95% 10 min'!P20","v":3.0241666666666664},{"$f":"'CO 95% 10 min'!Q34","v":41.29},{"$f":"'CO 95% 10 min'!P34","v":3.9609090909090909}]
[null,"95%ile 10-min avg *","150 mg/m3 *",{"$f":"'CO 95% 10 min'!M20","v":37},{"$f":"'CO 95% 10 min'!N20","v":3},{"$f":"'CO 95% 10 min'!M34","v":51},{"$f":"'CO 95% 10 min'!N34","v":3.9090909090909092}]
[]
["Comments :"]
[]
[]
[]
[]
[]
[]
[]
[]
[]
[]
[]
[]
[]
[]
[]
[]
[]
[]
[]
[]
[]
[]
[]
[]
[null,null,"2025-01-31"]

{"sheet":"NOx","index":15,"n_rows":52,"n_cols":17,"rows_kept":52,"cut":false,"hidden":false,"merged":[[21,9,32,9],[46,0,46,6],[47,0,50,6],[18,4,18,6],[3,16,7,18],[9,16,11,18],[12,16,15,18],[4,1,4,3],[4,4,4,6],[4,9,4,14],[6,9,18,9]]}
[{"$f":"+'Cover Page'!$B$28","v":"Annual Performance Report 2024"},null,null,null,{"$f":"+'Cover Page'!$B$32","v":"Ferrybridge 2"}]
[]
["Monitoring of Oxides of Nitrogen emissions",null,null,"Whole Installation",null,null,"See  Notes in Cell Q3",null,null,{"$f":"+A3","v":"Monitoring of Oxides of Nitrogen emissions"},null,null,null,"Per Combustion Line",null,null,"Notes:"]
[null,null,null,null,null,null,null,null,null,null,null,null,null,null,null,null,"User to add logic to complete Whole installation, Table A5:G18. From the data in Per Combustion Line, Table J6:O79, subject to No. of lines installed"]
[{"$f":"+'Cover Page'!C38","v":2024},"1/2 Hourly Reference Periods",null,null,"Daily Reference Periods"]
["mg/Nm3","1/2 hourly NOx ELV","Monthly mean of half-hourly averages","Highest half- hourly average","Daily NOx ELV","Monthly mean of  daily averages","Highest daily average",null,null,{"$f":"+A5","v":2024},"mg/Nm3","Monthly mean of half-hourly averages","Highest half- hourly average","Monthly mean of  daily averages","Highest daily average"]
["Jan",400,{"$f":"AVERAGE(L7, L22)","v":159.5},{"$f":"MAX(M7, M22)","v":198},180,{"$f":"AVERAGE(N7, N22)","v":159.43},{"$f":"MAX(O7, O22)","v":169.52},null,null,"A1","Jan",161,198,160.86000000000001,169.52]
["Feb",400,{"$f":"AVERAGE(L8, L23)","v":160},{"$f":"MAX(M8, M23)","v":188},180,{"$f":"AVERAGE(N8, N23)","v":159.98000000000002},{"$f":"MAX(O8, O23)","v":164.68},null,null,null,"Feb",160,188,160.09,164.68]
["Mar",400,161,203,180,160.88499999999999,167.02,null,null,null,"Mar",160,203,159.94999999999999,167.02,null,"Whole Installation table A5:G18:"]
["Apr",400,160,200,180,160.29000000000002,162.55000000000001,null,null,null,"Apr",159,185,159.31,160.97999999999999,null,"Mean: for 1/2 hourly and daily periods calculate mean of values across all operational combustion lines for the month"]
["May",400,168.5,196,180,168.11,171.68,null,null,null,"May",166,184,165.66,170.01]
["Jun",400,169.5,198,180,169.285,171.81,null,null,null,"Jun",169,190,168.51,170.71]
["Jul",400,168.5,198,180,168.57999999999998,171.73,null,null,null,"Jul",167,192,167.23,169.73,null,"Maximum: for 1/2 hourly and daily periods use the highest value across all operational combustion lines for the month"]
["Aug",400,168.5,211,180,168.66,171.54,null,null,null,"Aug",168,211,168.04,170.76]
["Sep",400,168.5,364,180,168.69,175.11,null,null,null,"Sep",167,197,167.42,170.49]
["Oct",400,167.5,207,180,167.285,171.42,null,null,null,"Oct",166,200,165.87,170.84]
["Nov",400,167.5,207,180,167.345,172.38,null,null,null,"Nov",165,196,164.76,172.38]
["Dec",400,165.68181818181819,364,180,165.58363636363637,175.11,null,null,null,"Dec",165,191,164.86,167.98]
[null,null,null,null,null,null,null,null,null,null,"Annual",{"$f":"AVERAGE(L7:L18)","v":164.41666666666666},{"$f":"MAX(M7:M18)","v":211},{"$f":"AVERAGE(N7:N18)","v":164.38},{"$f":"MAX(O7:O18)","v":172.38}]
[]
[null,null,null,null,null,null,null,null,null,{"$f":"+A5","v":2024},"mg/Nm3","Monthly mean of half-hourly averages","Highest half- hourly average","Monthly mean of  daily averages","Highest daily average"]
[null,null,null,null,null,null,null,null,null,"A2","Jan",158,196,158,169.12]
[null,null,null,null,null,null,null,null,null,null,"Feb",160,184,159.87,162.28]
[null,null,null,null,null,null,null,null,null,null,"Mar",162,198,161.82,163.58000000000001]
[null,null,null,null,null,null,null,null,null,null,"Apr",161,200,161.27000000000001,162.55000000000001]
[null,null,null,null,null,null,null,null,null,null,"Jun",171,196,170.56,171.68]
[null,null,null,null,null,null,null,null,null,null,"Jul",170,198,170.06,171.81]
[null,null,null,null,null,null,null,null,null,null,"Aug",170,198,169.93,171.73]
[null,null,null,null,null,null,null,null,null,null,"Sep",169,206,169.28,171.54]
[null,null,null,null,null,null,null,null,null,null,"Oct",170,364,169.96,175.11]
[null,null,null,null,null,null,null,null,null,null,"Nov",169,207,168.7,171.42]
[null,null,null,null,null,null,null,null,null,null,"Dec",170,207,169.93,171.48]
[null,null,null,null,null,null,null,null,null,null,"Annual",{"$f":"AVERAGE(L22:L32)","v":166.36363636363637},{"$f":"MAX(M22:M32)","v":364},{"$f":"AVERAGE(N22:N32)","v":166.30727272727273},{"$f":"MAX(O22:O32)","v":175.11}]
[]
[]
[]
[]
[]
[]
[]
[]
[]
[]
[]
[]
[]
["Comments :"]
[]
[]
[]
[]
[null,null,"2025-01-31"]

{"sheet":"SO2","index":16,"n_rows":52,"n_cols":17,"rows_kept":52,"cut":false,"hidden":false,"merged":[[21,9,32,9],[46,0,46,6],[47,0,50,6],[18,4,18,6],[3,16,7,18],[9,16,11,18],[12,16,15,18],[4,1,4,3],[4,4,4,6],[4,9,4,14],[6,9,18,9]]}
[{"$f":"+'Cover Page'!$B$28","v":"Annual Performance Report 2024"},null,null,null,{"$f":"+'Cover Page'!$B$32","v":"Ferrybridge 2"}]
[]
["Monitoring of Sulphur dioxide emissions",null,null,"Whole Installation",null,null,"See  Notes in Cell Q3",null,null,{"$f":"+A3","v":"Monitoring of Sulphur dioxide emissions"},null,null,null,"Per Combustion Line",null,null,"Notes:"]
[null,null,null,null,null,null,null,null,null,null,null,null,null,null,null,null,"User to add logic to complete Whole installation, Table A5:G18. From the data in Per Combustion Line, Table J6:O79, subject to No. of lines installed"]
[{"$f":"+'Cover Page'!C38","v":2024},"1/2 Hourly Reference Periods",null,null,"Daily Reference Periods"]
["mg/Nm3","1/2 hourly SO2 ELV","Monthly mean of half-hourly averages","Highest half- hourly average","Daily SO2 ELV","Monthly mean of  daily averages","Highest daily average",null,null,{"$f":"+A5","v":2024},"mg/Nm3","Monthly mean of half-hourly averages","Highest half- hourly average","Monthly mean of  daily averages","Highest daily average"]
["Jan",200,{"$f":"AVERAGE(L7, L22)","v":1},{"$f":"MAX(M7, M22)","v":16},40,{"$f":"AVERAGE(N7, N22)","v":0.97},{"$f":"MAX(O7, O22)","v":2.19},null,null,"A1","Jan",0,16,0.43,1.17]
["Feb",200,{"$f":"AVERAGE(L8, L23)","v":1},{"$f":"MAX(M8, M23)","v":16},40,{"$f":"AVERAGE(N8, N23)","v":0.74},{"$f":"MAX(O8, O23)","v":1.95},null,null,null,"Feb",1,16,0.74,1.55]
["Mar",200,1,21,40,0.78500000000000003,2.4500000000000002,null,null,null,"Mar",1,10,1.05,2.4500000000000002,null,"Whole Installation table A5:G18:"]
["Apr",200,0,21,40,0.41000000000000003,0.96,null,null,null,"Apr",0,3,0.44,0.89,null,"Mean: for 1/2 hourly and daily periods calculate mean of values across all operational combustion lines for the month"]
["May",200,0,17,40,0.155,0.56000000000000005,null,null,null,"May",0,2,0.2,0.4]
["Jun",200,0,5,40,0.09,0.53,null,null,null,"Jun",0,4,0.15,0.53]
["Jul",200,0,37,40,0.12,1.96,null,null,null,"Jul",0,8,0.09,0.41,null,"Maximum: for 1/2 hourly and daily periods use the highest value across all operational combustion lines for the month"]
["Aug",200,0,12,40,0.215,0.96,null,null,null,"Aug",0,12,0.22,0.96]
["Sep",200,0,12,40,0.315,1.1200000000000001,null,null,null,"Sep",0,10,0.35,1.1200000000000001]
["Oct",200,0.5,27,40,0.375,1.81,null,null,null,"Oct",1,27,0.61,1.81]
["Nov",200,0,20,40,0.18,1.18,null,null,null,"Nov",0,8,0.3,1.18]
["Dec",200,0.68181818181818188,37,40,0.4577272727272727,2.19,null,null,null,"Dec",1,11,0.54,1.41]
[null,null,null,null,null,null,null,null,null,null,"Annual",{"$f":"AVERAGE(L7:L18)","v":0.33333333333333331},{"$f":"MAX(M7:M18)","v":27},{"$f":"AVERAGE(N7:N18)","v":0.42666666666666669},{"$f":"MAX(O7:O18)","v":2.4500000000000002}]
[]
[null,null,null,null,null,null,null,null,null,{"$f":"+A5","v":2024},"mg/Nm3","Monthly mean of half-hourly averages","Highest half- hourly average","Monthly mean of  daily averages","Highest daily average"]
[null,null,null,null,null,null,null,null,null,"A2","Jan",2,15,1.51,2.19]
[null,null,null,null,null,null,null,null,null,null,"Feb",1,13,0.74,1.95]
[null,null,null,null,null,null,null,null,null,null,"Mar",1,21,0.52,1.32]
[null,null,null,null,null,null,null,null,null,null,"Apr",0,21,0.38,0.96]
[null,null,null,null,null,null,null,null,null,null,"Jun",0,17,0.11,0.56000000000000005]
[null,null,null,null,null,null,null,null,null,null,"Jul",0,5,0.03,0.13]
[null,null,null,null,null,null,null,null,null,null,"Aug",0,37,0.15,1.96]
[null,null,null,null,null,null,null,null,null,null,"Sep",0,11,0.21,0.85]
[null,null,null,null,null,null,null,null,null,null,"Oct",0,12,0.28000000000000003,0.8]
[null,null,null,null,null,null,null,null,null,null,"Nov",0,17,0.14000000000000001,0.48]
[null,null,null,null,null,null,null,null,null,null,"Dec",0,20,0.06,0.46]
[null,null,null,null,null,null,null,null,null,null,"Annual",{"$f":"AVERAGE(L22:L32)","v":0.36363636363636365},{"$f":"MAX(M22:M32)","v":37},{"$f":"AVERAGE(N22:N32)","v":0.37545454545454537},{"$f":"MAX(O22:O32)","v":2.19}]
[]
[]
[]
[]
[]
[]
[]
[]
[]
[]
[]
[]
[]
["Comments :"]
[]
[]
[]
[]
[null,null,"2025-01-31"]

{"sheet":"HCl","index":17,"n_rows":52,"n_cols":17,"rows_kept":52,"cut":false,"hidden":false,"merged":[[12,16,15,18],[4,9,4,14],[4,1,4,3],[4,4,4,6],[47,0,50,6],[46,0,46,6],[6,9,18,9],[21,9,32,9],[3,16,7,18],[9,16,11,18],[18,4,18,6]]}
[{"$f":"+'Cover Page'!$B$28","v":"Annual Performance Report 2024"},null,null,null,{"$f":"+'Cover Page'!$B$32","v":"Ferrybridge 2"}]
[]
["Monitoring of Hydrogen Chloride emissions",null,null,"Whole Installation",null,null,"See  Notes in Cell Q3",null,null,{"$f":"+A3","v":"Monitoring of Hydrogen Chloride emissions"},null,null,null,"Per Combustion Line",null,null,"Notes:"]
[null,null,null,null,null,null,null,null,null,null,null,null,null,null,null,null,"User to add logic to complete Whole installation, Table A5:G18. From the data in Per Combustion Line, Table J6:O79, subject to No. of lines installed"]
[{"$f":"+'Cover Page'!C38","v":2024},"1/2 Hourly Reference Periods",null,null,"Daily Reference Periods"]
["mg/Nm3","1/2 hourly HCl ELV","Monthly mean of half-hourly averages","Highest half- hourly average","Daily HCl ELV","Monthly mean of  daily averages","Highest daily average",null,null,{"$f":"+A5","v":2024},"mg/Nm3","Monthly mean of half-hourly averages","Highest half- hourly average","Monthly mean of  daily averages","Highest daily average"]
["Jan",60,{"$f":"AVERAGE(L7, L22)","v":6.5},{"$f":"MAX(M7, M22)","v":20},8,{"$f":"AVERAGE(N7, N22)","v":6.6549999999999994},{"$f":"MAX(O7, O22)","v":7.92},null,null,"A1","Jan",6,12,6.09,7.36]
["Feb",60,{"$f":"AVERAGE(L8, L23)","v":6.5},{"$f":"MAX(M8, M23)","v":13},8,{"$f":"AVERAGE(N8, N23)","v":6.09},{"$f":"MAX(O8, O23)","v":7.43},null,null,null,"Feb",6,11,5.6,6.72]
["Mar",60,6.5,14,8,6.29,7.4,null,null,null,"Mar",6,12,5.8,7.32,null,"Whole Installation table A5:G18:"]
["Apr",60,7.5,11,8,7.2549999999999999,7.74,null,null,null,"Apr",8,11,7.51,7.74,null,"Mean: for 1/2 hourly and daily periods calculate mean of values across all operational combustion lines for the month"]
["May",60,6.5,12,8,6.6150000000000002,7.76,null,null,null,"May",7,10,7.42,7.76]
["Jun",60,6,11,8,6.4649999999999999,7.82,null,null,null,"Jun",6,10,6.45,7.82]
["Jul",60,7,13,8,6.6549999999999994,7.73,null,null,null,"Jul",7,13,6.67,7.73,null,"Maximum: for 1/2 hourly and daily periods use the highest value across all operational combustion lines for the month"]
["Aug",60,7,16,8,6.8249999999999993,7.83,null,null,null,"Aug",7,12,6.89,7.83]
["Sep",60,6,44,8,6.1950000000000003,7.93,null,null,null,"Sep",7,10,6.9,7.89]
["Oct",60,6.5,19,8,6.8149999999999995,8.15,null,null,null,"Oct",6,12,6.41,7.93]
["Nov",60,7,15,8,6.9649999999999999,7.81,null,null,null,"Nov",7,12,6.56,7.77]
["Dec",60,6.3181818181818183,44,8,6.5240909090909094,8.15,null,null,null,"Dec",6,12,6.38,7.14]
[null,null,null,null,null,null,null,null,null,null,"Annual",{"$f":"AVERAGE(L7:L18)","v":6.583333333333333},{"$f":"MAX(M7:M18)","v":13},{"$f":"AVERAGE(N7:N18)","v":6.5566666666666675},{"$f":"MAX(O7:O18)","v":7.93}]
[]
[null,null,null,null,null,null,null,null,null,{"$f":"+A5","v":2024},"mg/Nm3","Monthly mean of half-hourly averages","Highest half- hourly average","Monthly mean of  daily averages","Highest daily average"]
[null,null,null,null,null,null,null,null,null,"A2","Jan",7,20,7.22,7.92]
[null,null,null,null,null,null,null,null,null,null,"Feb",7,13,6.58,7.43]
[null,null,null,null,null,null,null,null,null,null,"Mar",7,14,6.78,7.4]
[null,null,null,null,null,null,null,null,null,null,"Apr",7,11,7,7.51]
[null,null,null,null,null,null,null,null,null,null,"Jun",6,12,5.81,7.08]
[null,null,null,null,null,null,null,null,null,null,"Jul",6,11,6.48,7.72]
[null,null,null,null,null,null,null,null,null,null,"Aug",7,12,6.64,7.4]
[null,null,null,null,null,null,null,null,null,null,"Sep",7,16,6.76,7.6]
[null,null,null,null,null,null,null,null,null,null,"Oct",5,44,5.49,7.93]
[null,null,null,null,null,null,null,null,null,null,"Nov",7,19,7.22,8.15]
[null,null,null,null,null,null,null,null,null,null,"Dec",7,15,7.37,7.81]
[null,null,null,null,null,null,null,null,null,null,"Annual",{"$f":"AVERAGE(L22:L32)","v":6.6363636363636367},{"$f":"MAX(M22:M32)","v":44},{"$f":"AVERAGE(N22:N32)","v":6.6681818181818189},{"$f":"MAX(O22:O32)","v":8.15}]
[]
[]
[]
[]
[]
[]
[]
[]
[]
[]
[]
[]
[]
["Comments :"]
[]
[]
[]
[]
[null,null,"2025-01-31"]

{"sheet":"TOC","index":18,"n_rows":52,"n_cols":17,"rows_kept":52,"cut":false,"hidden":false,"merged":[[21,9,32,9],[46,0,46,6],[47,0,50,6],[3,16,7,18],[9,16,11,18],[12,16,15,18],[4,1,4,3],[4,4,4,6],[4,9,4,14],[6,9,18,9]]}
[{"$f":"+'Cover Page'!$B$28","v":"Annual Performance Report 2024"},null,null,null,{"$f":"+'Cover Page'!$B$32","v":"Ferrybridge 2"}]
[]
["Monitoring of Total organic carbon emissions",null,null,"Whole Installation",null,null,"See  Notes in Cell Q3",null,null,{"$f":"+A3","v":"Monitoring of Total organic carbon emissions"},null,null,null,"Per Combustion Line",null,null,"Notes:"]
[null,null,null,null,null,null,null,null,null,null,null,null,null,null,null,null,"User to add logic to complete Whole installation, Table A5:G18. From the data in Per Combustion Line, Table J6:O79, subject to No. of lines installed"]
[{"$f":"+'Cover Page'!C38","v":2024},"1/2 Hourly Reference Periods",null,null,"Daily Reference Periods"]
["mg/Nm3","1/2 hourly TOC ELV","Monthly mean of half-hourly averages","Highest half- hourly average","Daily TOC ELV","Monthly mean of  daily averages","Highest daily average",null,null,{"$f":"+A5","v":2024},"mg/Nm3","Monthly mean of half-hourly averages","Highest half- hourly average","Monthly mean of  daily averages","Highest daily average"]
["Jan",20,{"$f":"AVERAGE(L7, L22)","v":0.5},{"$f":"MAX(M7, M22)","v":5},10,{"$f":"AVERAGE(N7, N22)","v":0.505},{"$f":"MAX(O7, O22)","v":0.67},null,null,"A1","Jan",1,3,0.62,0.67]
["Feb",20,{"$f":"AVERAGE(L8, L23)","v":0},{"$f":"MAX(M8, M23)","v":3},10,{"$f":"AVERAGE(N8, N23)","v":0.255},{"$f":"MAX(O8, O23)","v":0.62},null,null,null,"Feb",0,2,0.28999999999999998,0.62]
["Mar",20,0,13,10,0.18,0.45,null,null,null,"Mar",0,2,0.12,0.17,null,"Whole Installation table A5:G18:"]
["Apr",20,0,6,10,0.11,0.36,null,null,null,"Apr",0,2,0.01,0.04,null,"Mean: for 1/2 hourly and daily periods calculate mean of values across all operational combustion lines for the month"]
["May",20,0,3,10,0.1,0.31,null,null,null,"May",0,3,0.01,0.13]
["Jun",20,0,4,10,0.17,0.47,null,null,null,"Jun",0,2,0.01,0.06]
["Jul",20,0,3,10,0.40500000000000003,0.77,null,null,null,"Jul",0,1,0.38,0.77,null,"Maximum: for 1/2 hourly and daily periods use the highest value across all operational combustion lines for the month"]
["Aug",20,0,10,10,0.36499999999999999,0.74,null,null,null,"Aug",0,2,0.4,0.74]
["Sep",20,0.5,4,10,0.41,0.83,null,null,null,"Sep",1,4,0.57999999999999996,0.83]
["Oct",20,0.5,9,10,0.33500000000000002,0.98,null,null,null,"Oct",1,5,0.54,0.98]
["Nov",20,0,1,10,0.105,0.34,null,null,null,"Nov",0,1,0.09,0.23]
["Dec",20,0,13,10,0.13863636363636364,0.68,null,null,null,"Dec",0,2,0.02,0.05]
[null,null,null,null,null,null,null,null,null,null,"Annual",{"$f":"AVERAGE(L7:L18)","v":0.25},{"$f":"MAX(M7:M18)","v":5},{"$f":"AVERAGE(N7:N18)","v":0.2558333333333333},{"$f":"MAX(O7:O18)","v":0.98}]
[]
[null,null,null,null,null,null,null,null,null,{"$f":"+A5","v":2024},"mg/Nm3","Monthly mean of half-hourly averages","Highest half- hourly average","Monthly mean of  daily averages","Highest daily average"]
[null,null,null,null,null,null,null,null,null,"A2","Jan",0,5,0.39,0.48]
[null,null,null,null,null,null,null,null,null,null,"Feb",0,3,0.22,0.45]
[null,null,null,null,null,null,null,null,null,null,"Mar",0,13,0.24,0.45]
[null,null,null,null,null,null,null,null,null,null,"Apr",0,6,0.21,0.36]
[null,null,null,null,null,null,null,null,null,null,"Jun",0,2,0.19,0.31]
[null,null,null,null,null,null,null,null,null,null,"Jul",0,4,0.33,0.47]
[null,null,null,null,null,null,null,null,null,null,"Aug",0,3,0.43,0.68]
[null,null,null,null,null,null,null,null,null,null,"Sep",0,10,0.33,0.47]
[null,null,null,null,null,null,null,null,null,null,"Oct",0,2,0.24,0.46]
[null,null,null,null,null,null,null,null,null,null,"Nov",0,9,0.13,0.28999999999999998]
[null,null,null,null,null,null,null,null,null,null,"Dec",0,1,0.12,0.34]
[null,null,null,null,null,null,null,null,null,null,"Annual",{"$f":"AVERAGE(L22:L32)","v":0},{"$f":"MAX(M22:M32)","v":13},{"$f":"AVERAGE(N22:N32)","v":0.25727272727272726},{"$f":"MAX(O22:O32)","v":0.68}]
[]
[]
[]
[]
[]
[]
[]
[]
[]
[]
[]
[]
[]
["Comments :"]
[]
[]
[]
[]
[null,null,"2025-01-31"]

{"sheet":"Particulates","index":19,"n_rows":52,"n_cols":17,"rows_kept":52,"cut":false,"hidden":false,"merged":[[21,9,32,9],[46,0,46,6],[47,0,50,6],[18,4,18,6],[4,16,8,18],[10,16,12,18],[13,16,16,18],[4,1,4,3],[4,4,4,6],[4,9,4,14],[6,9,18,9]]}
[{"$f":"+'Cover Page'!$B$28","v":"Annual Performance Report 2024"},null,null,null,{"$f":"+'Cover Page'!$B$32","v":"Ferrybridge 2"}]
[]
["Monitoring of Particulate matter emissions",null,null,"Whole Installation",null,null,"See  Notes in Cell Q3",null,null,{"$f":"+A3","v":"Monitoring of Particulate matter emissions"},null,null,null,"Per Combustion Line",null,null,"Notes:"]
[]
[{"$f":"+'Cover Page'!C38","v":2024},"1/2 Hourly Reference Periods",null,null,"Daily Reference Periods",null,null,null,null,null,null,null,null,null,null,null,"User to add logic to complete Whole installation, Table A5:G18. From the data in Per Combustion Line, Table J6:O79, subject to No. of lines installed"]
["mg/Nm3","1/2 hourly PM ELV","Monthly mean of half-hourly averages","Highest half- hourly average","Daily PM ELV","Monthly mean of  daily averages","Highest daily average",null,null,{"$f":"+A5","v":2024},"mg/Nm3","Monthly mean of half-hourly averages","Highest half- hourly average","Monthly mean of  daily averages","Highest daily average"]
["Jan",30,{"$f":"AVERAGE(L7, L22)","v":1.5},{"$f":"MAX(M7, M22)","v":7},5,{"$f":"AVERAGE(N7, N22)","v":1.075},{"$f":"MAX(O7, O22)","v":3.66},null,null,"A1","Jan",2,7,1.52,3.66]
["Feb",30,{"$f":"AVERAGE(L8, L23)","v":0.5},{"$f":"MAX(M8, M23)","v":6},5,{"$f":"AVERAGE(N8, N23)","v":0.66999999999999993},{"$f":"MAX(O8, O23)","v":1.52},null,null,null,"Feb",1,6,1.1599999999999999,1.52]
["Mar",30,0.5,8,5,0.70499999999999996,3.4,null,null,null,"Mar",1,8,1.19,3.4]
["Apr",30,0.5,2,5,0.56000000000000005,1.01,null,null,null,"Apr",0,1,0.5,0.56999999999999995,null,"Whole Installation table A5:G18:"]
["May",30,0.5,3,5,0.64,1.27,null,null,null,"May",1,1,0.56000000000000005,0.61,null,"Mean: for 1/2 hourly and daily periods calculate mean of values across all operational combustion lines for the month"]
["Jun",30,1,3,5,0.52,1.93,null,null,null,"Jun",1,1,0.51,0.55000000000000004]
["Jul",30,0.5,5,5,0.51,1.61,null,null,null,"Jul",1,5,0.54,0.65]
["Aug",30,0.5,2,5,0.41000000000000003,0.56999999999999995,null,null,null,"Aug",1,1,0.54,0.56999999999999995,null,"Maximum: for 1/2 hourly and daily periods use the highest value across all operational combustion lines for the month"]
["Sep",30,0.5,2,5,0.45,0.75,null,null,null,"Sep",1,1,0.54,0.59]
["Oct",30,0.5,60,5,0.47,1.43,null,null,null,"Oct",1,3,0.64,1.26]
["Nov",30,0.5,2,5,0.51500000000000001,0.89,null,null,null,"Nov",1,2,0.6,0.74]
["Dec",30,0.63636363636363635,60,5,0.53590909090909089,1.93,null,null,null,"Dec",1,1,0.64,0.72]
[null,null,null,null,null,null,null,null,null,null,"Annual",{"$f":"AVERAGE(L7:L18)","v":1},{"$f":"MAX(M7:M18)","v":8},{"$f":"AVERAGE(N7:N18)","v":0.745},{"$f":"MAX(O7:O18)","v":3.66}]
[]
[null,null,null,null,null,null,null,null,null,{"$f":"+A5","v":2024},"mg/Nm3","Monthly mean of half-hourly averages","Highest half- hourly average","Monthly mean of  daily averages","Highest daily average"]
[null,null,null,null,null,null,null,null,null,"A2","Jan",1,7,0.63,1.84]
[null,null,null,null,null,null,null,null,null,null,"Feb",0,1,0.18,0.39]
[null,null,null,null,null,null,null,null,null,null,"Mar",0,3,0.22,0.55000000000000004]
[null,null,null,null,null,null,null,null,null,null,"Apr",1,2,0.62,1.01]
[null,null,null,null,null,null,null,null,null,null,"Jun",0,3,0.72,1.27]
[null,null,null,null,null,null,null,null,null,null,"Jul",1,3,0.53,1.93]
[null,null,null,null,null,null,null,null,null,null,"Aug",0,2,0.48,1.61]
[null,null,null,null,null,null,null,null,null,null,"Sep",0,2,0.28000000000000003,0.42]
[null,null,null,null,null,null,null,null,null,null,"Oct",0,2,0.36,0.75]
[null,null,null,null,null,null,null,null,null,null,"Nov",0,60,0.3,1.43]
[null,null,null,null,null,null,null,null,null,null,"Dec",0,2,0.43,0.89]
[null,null,null,null,null,null,null,null,null,null,"Annual",{"$f":"AVERAGE(L22:L32)","v":0.27272727272727271},{"$f":"MAX(M22:M32)","v":60},{"$f":"AVERAGE(N22:N32)","v":0.43181818181818182},{"$f":"MAX(O22:O32)","v":1.93}]
[]
[]
[]
[]
[]
[]
[]
[]
[]
[]
[]
[]
[]
["Comments :"]
[]
[]
[]
[]
[null,null,"2025-01-31"]

{"sheet":"NH3","index":20,"n_rows":52,"n_cols":17,"rows_kept":52,"cut":false,"hidden":false,"merged":[[21,9,32,9],[46,0,46,6],[47,0,50,6],[18,4,18,6],[3,16,7,18],[9,16,11,18],[12,16,15,18],[4,1,4,3],[4,4,4,6],[4,9,4,14],[6,9,18,9]]}
[{"$f":"+'Cover Page'!$B$28","v":"Annual Performance Report 2024"},null,null,null,{"$f":"+'Cover Page'!$B$32","v":"Ferrybridge 2"}]
[]
["Monitoring of Ammonia emissions ",null,null,"Whole Installation",null,null,"See  Notes in Cell Q3",null,null,{"$f":"+A3","v":"Monitoring of Ammonia emissions "},null,null,null,"Per Combustion Line",null,null,"Notes:"]
[null,null,null,null,null,null,null,null,null,null,null,null,null,null,null,null,"User to add logic to complete Whole installation, Table A5:G18. From the data in Per Combustion Line, Table J6:O79, subject to No. of lines installed"]
[{"$f":"+'Cover Page'!C38","v":2024},"1/2 Hourly Reference Periods",null,null,"Daily Reference Periods"]
["mg/Nm3","1/2 hourly NH3 ELV","Monthly mean of half-hourly averages","Highest half- hourly average","Daily NH3 ELV","Monthly mean of  daily averages","Highest daily average",null,null,{"$f":"+A5","v":2024},"mg/Nm3","Monthly mean of half-hourly averages","Highest half- hourly average","Monthly mean of  daily averages","Highest daily average"]
["Jan","None",{"$f":"AVERAGE(L7, L22)","v":0},{"$f":"MAX(M7, M22)","v":1},15,{"$f":"AVERAGE(N7, N22)","v":2.5000000000000001E-2},{"$f":"MAX(O7, O22)","v":0.51},null,null,"A1","Jan",0,1,0.05,0.51]
["Feb",{"$f":"+B7","v":"None"},{"$f":"AVERAGE(L8, L23)","v":0},{"$f":"MAX(M8, M23)","v":0},15,{"$f":"AVERAGE(N8, N23)","v":0.03},{"$f":"MAX(O8, O23)","v":0.14000000000000001},null,null,null,"Feb",0,0,0.02,7.0000000000000007E-2]
["Mar",{"$f":"+B8","v":"None"},0,1,15,0.03,0.35,null,null,null,"Mar",0,1,0.02,0.35,null,"Whole Installation table A5:G18:"]
["Apr","None",0,0,15,2.5000000000000001E-2,0.08,null,null,null,"Apr",0,0,0,0.02,null,"Mean: for 1/2 hourly and daily periods calculate mean of values across all operational combustion lines for the month"]
["May","None",0,1,15,4.4999999999999998E-2,0.19,null,null,null,"May",0,0,0,0.01]
["Jun","None",0,0,15,2.5000000000000001E-2,0.11,null,null,null,"Jun",0,0,0,0.02]
["Jul","None",0,0,15,0.01,0.06,null,null,null,"Jul",0,0,0,0.02,null,"Maximum: for 1/2 hourly and daily periods use the highest value across all operational combustion lines for the month"]
["Aug","None",0,0,15,0.01,0.14000000000000001,null,null,null,"Aug",0,0,0.02,0.14000000000000001]
["Sep","None",0,1,15,3.5000000000000003E-2,0.69,null,null,null,"Sep",0,0,0,7.0000000000000007E-2]
["Oct","None",0,1,15,0.04,0.27,null,null,null,"Oct",0,0,0.02,0.27]
["Nov","None",0,0,15,2.5000000000000001E-2,0.1,null,null,null,"Nov",0,0,0,0.03]
["Dec","None",0,1,15,2.1363636363636366E-2,0.69,null,null,null,"Dec",0,0,0,0.01]
[null,null,null,null,null,null,null,null,null,null,"Annual",{"$f":"AVERAGE(L7:L18)","v":0},{"$f":"MAX(M7:M18)","v":1},{"$f":"AVERAGE(N7:N18)","v":1.0833333333333334E-2},{"$f":"MAX(O7:O18)","v":0.51}]
[]
[null,null,null,null,null,null,null,null,null,{"$f":"+A5","v":2024},"mg/Nm3","Monthly mean of half-hourly averages","Highest half- hourly average","Monthly mean of  daily averages","Highest daily average"]
[null,null,null,null,null,null,null,null,null,"A2","Jan",0,0,0,0.03]
[null,null,null,null,null,null,null,null,null,null,"Feb",0,0,0.04,0.14000000000000001]
[null,null,null,null,null,null,null,null,null,null,"Mar",0,0,0.04,7.0000000000000007E-2]
[null,null,null,null,null,null,null,null,null,null,"Apr",0,0,0.05,0.08]
[null,null,null,null,null,null,null,null,null,null,"Jun",0,1,0.09,0.19]
[null,null,null,null,null,null,null,null,null,null,"Jul",0,0,0.05,0.11]
[null,null,null,null,null,null,null,null,null,null,"Aug",0,0,0.02,0.06]
[null,null,null,null,null,null,null,null,null,null,"Sep",0,0,0,0.03]
[null,null,null,null,null,null,null,null,null,null,"Oct",0,1,7.0000000000000007E-2,0.69]
[null,null,null,null,null,null,null,null,null,null,"Nov",0,1,0.06,0.1]
[null,null,null,null,null,null,null,null,null,null,"Dec",0,0,0.05,0.1]
[null,null,null,null,null,null,null,null,null,null,"Annual",{"$f":"AVERAGE(L22:L32)","v":0},{"$f":"MAX(M22:M32)","v":1},{"$f":"AVERAGE(N22:N32)","v":4.2727272727272732E-2},{"$f":"MAX(O22:O32)","v":0.69}]
[]
[]
[]
[]
[]
[]
[]
[]
[]
[]
[]
[]
[]
["Comments :"]
["An indicated ELV value of zero in the table above means that no ammonia limit is/was set in the permit.  "]
[]
[]
[]
[null,null,"2025-01-31"]

{"sheet":"CO 95% 10 min","index":21,"n_rows":49,"n_cols":19,"rows_kept":49,"cut":false,"hidden":false,"merged":[[22,10,33,10],[47,0,47,7],[48,0,51,7],[4,18,8,20],[10,18,12,20],[13,18,16,20],[5,1,5,4],[5,5,5,7],[5,10,5,16],[7,10,19,10]]}
[{"$f":"+'Cover Page'!$B$28","v":"Annual Performance Report 2024"},null,null,null,{"$f":"+'Cover Page'!$B$32","v":"Ferrybridge 2"}]
[]
["Monitoring of Carbon Monoxide (10-minute avg)",null,null,null,"Whole Installation",null,null,"See  Notes in Cell S3",null,{"$f":"+A3","v":"Monitoring of Carbon Monoxide (10-minute avg)"},null,null,null,null,"Per Combustion Line",null,"Notes:",null,"Notes:"]
[]
[null,null,null,null,null,null,null,null,null,null,null,null,null,null,null,null,null,null,"User to add logic to complete Whole installation, Table A5:H18. From the data in Per Combustion Line, Table K6:Q79, subject to No. of lines installed"]
[{"$f":"+'Cover Page'!C38","v":2024},"10-minute Reference Periods",null,null,null,"Daily Reference Periods"]
["mg/Nm3","95%ile 10-min avg CO ELV","Highest daily 95%ile 10-min average","Monthly mean of 10-min averages","Highest 10-min average","Daily CO ELV","Monthly mean of  daily averages","Highest daily average",null,null,{"$f":"+A6","v":2024},"mg/Nm3","Highest daily 95%ile 10-min average","Monthly mean of 10-min averages","Highest 10-min average","Monthly mean of  daily averages","Highest daily average"]
["Jan",150,{"$f":"MAX(M8,  M23)","v":18},{"$f":"AVERAGE(N8, N23)","v":2.5},{"$f":"MAX(O8, O23)","v":1863},50,{"$f":"AVERAGE(P8, P23)","v":2.8899999999999997},{"$f":"MAX(Q8, Q23)","v":16.440000000000001},null,null,"A1","Jan",18,2,370,2.3199999999999998,5.94]
["Feb",{"$f":"+B8","v":150},{"$f":"MAX(M9,  M24)","v":17},{"$f":"AVERAGE(N9, N24)","v":4},{"$f":"MAX(O9, O24)","v":2679},{"$f":"+F8","v":50},{"$f":"AVERAGE(P9, P24)","v":4.09},{"$f":"MAX(Q9, Q24)","v":19.899999999999999},null,null,null,"Feb",12,4,362,3.73,6.48]
["Mar",{"$f":"+B9","v":150},13,4.5,4499,{"$f":"+F9","v":50},4.2949999999999999,30.35,null,null,null,"Mar",10,3,224,3.08,5.03,null,"Whole Installation table A5:H18:"]
["Apr",150,14,4,4931,50,4.0949999999999998,33.72,null,null,null,"Apr",8,3,253,2.94,5.32,null,"Mean: for 10-min and daily periods use average of all operational combustion lines."]
["May",150,18,3,393,50,3.1850000000000001,6.31,null,null,null,"May",8,3,393,3,5.76]
["Jun",150,13,3,376,50,2.9049999999999998,9.07,null,null,null,"Jun",8,3,241,2.8,5.12]
["Jul",150,37,3,407,50,2.8899999999999997,7.5,null,null,null,"Jul",37,3,407,2.77,7.5,null,"Maximum: for 10-min and daily periods use the highest of all operational combustion lines in any month."]
["Aug",150,42,4.5,5314,50,4.46,41.29,null,null,null,"Aug",25,3,719,3.42,9.26]
["Sep",150,30,4,380,50,4.085,10.050000000000001,null,null,null,"Sep",30,3,380,3.01,8.36]
["Oct",150,51,3,2563,50,3.18,19.13,null,null,null,"Oct",15,3,491,3.39,9.0399999999999991]
["Nov",150,11,2.5,291,50,2.4849999999999999,5.89,null,null,null,"Nov",11,3,291,3.09,5.62]
["Dec",150,51,3.4545454545454546,5314,50,3.3504545454545456,41.29,null,null,null,"Dec",9,3,233,2.74,4.3099999999999996]
[null,null,null,null,null,null,null,null,null,null,null,"Annual",{"$f":"MAX(M8:M19)","v":37},{"$f":"AVERAGE(N8:N19)","v":3},{"$f":"MAX(O8:O19)","v":719},{"$f":"AVERAGE(P8:P19)","v":3.0241666666666664},{"$f":"MAX(Q8:Q19)","v":9.26}]
[]
[null,null,null,null,null,null,null,null,null,null,{"$f":"+A6","v":2024},"mg/Nm3","Highest daily 95%ile 10-min average","Monthly mean of 10-min averages","Highest 10-min average","Monthly mean of  daily averages","Highest daily average"]
[null,null,null,null,null,null,null,null,null,null,"A2","Jan",9,3,1863,3.46,16.440000000000001]
[null,null,null,null,null,null,null,null,null,null,null,"Feb",17,4,2679,4.45,19.899999999999999]
[null,null,null,null,null,null,null,null,null,null,null,"Mar",13,6,4499,5.51,30.35]
[null,null,null,null,null,null,null,null,null,null,null,"May",14,5,4931,5.25,33.72]
[null,null,null,null,null,null,null,null,null,null,null,"Jun",18,3,279,3.37,6.31]
[null,null,null,null,null,null,null,null,null,null,null,"Jul",13,3,376,3.01,9.07]
[null,null,null,null,null,null,null,null,null,null,null,"Aug",20,3,339,3.01,5.72]
[null,null,null,null,null,null,null,null,null,null,null,"Sep",42,6,5314,5.5,41.29]
[null,null,null,null,null,null,null,null,null,null,null,"Oct",27,5,265,5.16,10.050000000000001]
[null,null,null,null,null,null,null,null,null,null,null,"Nov",51,3,2563,2.97,19.13]
[null,null,null,null,null,null,null,null,null,null,null,"Dec",8,2,153,1.88,5.89]
[null,null,null,null,null,null,null,null,null,null,null,"Annual",{"$f":"MAX(M23:M33)","v":51},{"$f":"AVERAGE(N23:N33)","v":3.9090909090909092},{"$f":"MAX(O23:O33)","v":5314},{"$f":"AVERAGE(P23:P33)","v":3.9609090909090909},{"$f":"MAX(Q23:Q33)","v":41.29}]
[]
[]
[]
[]
[]
[]
[]
[]
[]
[]
[]
[]
[]
["Comments :"]
["Environment Agency explanatory note: The 10-minute average ELV is based on the “95th percentile”. In this case this means that 95% of the 10 minute averages in the relevant 24-hour period (i.e. 137) must be below 150 mg/Nm3, and 5% (i.e. 7) are allowed to be any value above 150 mg/Nm3. Whilst we expect operators to minimise CO emissions at all times, it is perfectly acceptable for the value of the maximum 10-minute average to be above 150 mg/Nm3, provided the 95th percentile ELV has been met for that period. "]

{"sheet":"CO 0.5 hourly","index":22,"n_rows":80,"n_cols":17,"rows_kept":80,"cut":false,"hidden":false,"merged":[[4,0,5,6],[6,16,10,18],[12,16,14,18],[15,16,18,18],[67,9,79,9],[7,1,7,3],[7,4,7,6],[7,9,7,14],[9,9,21,9],[24,9,35,9],[38,9,50,9],[49,0,49,6],[50,0,52,6],[52,9,64,9]]}
[{"$f":"+'Cover Page'!$B$28","v":"Annual Performance Report 2024"},null,null,null,{"$f":"+'Cover Page'!$B$32","v":"Ferrybridge 2"}]
[]
["Monitoring of Carbon Monoxide (half hourly)",null,null,"Whole Installation",null,null,"See  Notes in Cell Q3",null,null,{"$f":"+A3","v":"Monitoring of Carbon Monoxide (half hourly)"},null,null,null,"Per Combustion Line",null,null,"Notes:"]
[]
["Please complete this tab for your plant if you have 1/2 hourly CO ELVs; otherwise, leave it blank and complete the CO 95% 10 min tab"]
[]
[null,null,null,null,null,null,null,null,null,null,null,null,null,null,null,null,"User to add logic to complete Whole installation, Table A5:G18. From the data in Per Combustion Line, Table J6:O79, subject to No. of lines installed"]
[{"$f":"+'Cover Page'!C38","v":2024},"1/2 Hourly Reference Periods",null,null,"Daily Reference Periods"]
["mg/Nm3","1/2 hourly CO ELV","Monthly mean of half-hourly averages","Highest half- hourly average","Daily CO ELV","Monthly mean of  daily averages","Highest daily average",null,null,{"$f":"+A8","v":2024},"mg/Nm3","Monthly mean of half-hourly averages","Highest half- hourly average","Monthly mean of  daily averages","Highest daily average"]
["Jan",100,null,null,50,null,null,null,null,"A1","Jan"]
["Feb",{"$f":"+B10","v":100},null,null,{"$f":"+E10","v":50},null,null,null,null,null,"Feb"]
["Mar",{"$f":"+B11","v":100},null,null,{"$f":"+E11","v":50},null,null,null,null,null,"Mar",null,null,null,null,null,"Whole Installation table A5:G18:"]
["Apr",100,null,null,50,null,null,null,null,null,"Apr",null,null,null,null,null,"Mean: for 1/2 hourly and daily periods calculate mean of values across all operational combustion lines for the month"]
["May",100,null,null,50,null,null,null,null,null,"May"]
["Jun",100,null,null,50,null,null,null,null,null,"Jun"]
["Jul",100,null,null,50,null,null,null,null,null,"Jul",null,null,null,null,null,"Maximum: for 1/2 hourly and daily periods use the highest value across all operational combustion lines for the month"]
["Aug",100,null,null,50,null,null,null,null,null,"Aug"]
["Sep",100,null,null,50,null,null,null,null,null,"Sep"]
["Oct",100,null,null,50,null,null,null,null,null,"Oct"]
["Nov",100,null,null,50,null,null,null,null,null,"Nov"]
["Dec",100,null,null,50,null,null,null,null,null,"Dec"]
[null,null,null,null,null,null,null,null,null,null,"Annual",{"$f":"AVERAGE(L10:L21)","v":{"$error":"#DIV/0!"}},{"$f":"MAX(M10:M21)","v":0},{"$f":"AVERAGE(N10:N21)","v":{"$error":"#DIV/0!"}},{"$f":"MAX(O10:O21)","v":0}]
[]
[null,null,null,null,null,null,null,null,null,{"$f":"+A8","v":2024},"mg/Nm3","Monthly mean of half-hourly averages","Highest half- hourly average","Monthly mean of  daily averages","Highest daily average"]
[null,null,null,null,null,null,null,null,null,"A2","Jan"]
[null,null,null,null,null,null,null,null,null,null,"Mar"]
[null,null,null,null,null,null,null,null,null,null,"Apr"]
[null,null,null,null,null,null,null,null,null,null,"May"]
[null,null,null,null,null,null,null,null,null,null,"Jun"]
[null,null,null,null,null,null,null,null,null,null,"Jul"]
[null,null,null,null,null,null,null,null,null,null,"Aug"]
[null,null,null,null,null,null,null,null,null,null,"Sep"]
[null,null,null,null,null,null,null,null,null,null,"Oct"]
[null,null,null,null,null,null,null,null,null,null,"Nov"]
[null,null,null,null,null,null,null,null,null,null,"Dec"]
[null,null,null,null,null,null,null,null,null,null,"Annual",{"$f":"AVERAGE(L25:L35)","v":{"$error":"#DIV/0!"}},{"$f":"MAX(M25:M35)","v":0},{"$f":"AVERAGE(N25:N35)","v":{"$error":"#DIV/0!"}},{"$f":"MAX(O25:O35)","v":0}]
[]
[null,null,null,null,null,null,null,null,null,{"$f":"+A8","v":2024},"mg/Nm3","Monthly mean of half-hourly averages","Highest half- hourly average","Monthly mean of  daily averages","Highest daily average"]
[null,null,null,null,null,null,null,null,null,"A3","Jan"]
[null,null,null,null,null,null,null,null,null,null,"Feb"]
[null,null,null,null,null,null,null,null,null,null,"Mar"]
[null,null,null,null,null,null,null,null,null,null,"Apr"]
[null,null,null,null,null,null,null,null,null,null,"May"]
[null,null,null,null,null,null,null,null,null,null,"Jun"]
[null,null,null,null,null,null,null,null,null,null,"Jul"]
[null,null,null,null,null,null,null,null,null,null,"Aug"]
[null,null,null,null,null,null,null,null,null,null,"Sep"]
[null,null,null,null,null,null,null,null,null,null,"Oct"]
[null,null,null,null,null,null,null,null,null,null,"Nov"]
["Comments :",null,null,null,null,null,null,null,null,null,"Dec"]
[null,null,null,null,null,null,null,null,null,null,"Annual",{"$f":"AVERAGE(L39:L50)","v":{"$error":"#DIV/0!"}},{"$f":"MAX(M39:M50)","v":0},{"$f":"AVERAGE(N39:N50)","v":{"$error":"#DIV/0!"}},{"$f":"MAX(O39:O50)","v":0}]
[]
[null,null,null,null,null,null,null,null,null,"A4","Jan"]
[null,null,null,null,null,null,null,null,null,null,"Feb"]
[null,null,null,null,null,null,null,null,null,null,"Mar"]
[null,null,null,null,null,null,null,null,null,null,"Apr"]
[null,null,null,null,null,null,null,null,null,null,"May"]
[null,null,null,null,null,null,null,null,null,null,"Jun"]
[null,null,null,null,null,null,null,null,null,null,"Jul"]
[null,null,null,null,null,null,null,null,null,null,"Aug"]
[null,null,null,null,null,null,null,null,null,null,"Sep"]
[null,null,null,null,null,null,null,null,null,null,"Oct"]
[null,null,null,null,null,null,null,null,null,null,"Nov"]
[null,null,null,null,null,null,null,null,null,null,"Dec"]
[null,null,null,null,null,null,null,null,null,null,"Annual",{"$f":"AVERAGE(L53:L64)","v":{"$error":"#DIV/0!"}},{"$f":"MAX(M53:M64)","v":0},{"$f":"AVERAGE(N53:N64)","v":{"$error":"#DIV/0!"}},{"$f":"MAX(O53:O64)","v":0}]
[]
[null,null,null,null,null,null,null,null,null,{"$f":"+A8","v":2024},"mg/Nm3","Monthly mean of half-hourly averages","Highest half- hourly average","Monthly mean of  daily averages","Highest daily average"]
[null,null,null,null,null,null,null,null,null,"A5","Jan"]
[null,null,null,null,null,null,null,null,null,null,"Feb"]
[null,null,null,null,null,null,null,null,null,null,"Mar"]
[null,null,null,null,null,null,null,null,null,null,"Apr"]
[null,null,null,null,null,null,null,null,null,null,"May"]
[null,null,null,null,null,null,null,null,null,null,"Jun"]
[null,null,null,null,null,null,null,null,null,null,"Jul"]
[null,null,null,null,null,null,null,null,null,null,"Aug"]
[null,null,null,null,null,null,null,null,null,null,"Sep"]
[null,null,null,null,null,null,null,null,null,null,"Oct"]
[null,null,null,null,null,null,null,null,null,null,"Nov"]
[null,null,null,null,null,null,null,null,null,null,"Dec"]
[null,null,null,null,null,null,null,null,null,null,"Annual",{"$f":"AVERAGE(L68:L79)","v":{"$error":"#DIV/0!"}},{"$f":"MAX(M68:M79)","v":0},{"$f":"AVERAGE(N68:N79)","v":{"$error":"#DIV/0!"}},{"$f":"MAX(O68:O79)","v":0}]

{"sheet":"Template changes log","index":23,"n_rows":52,"n_cols":3,"rows_kept":52,"cut":false,"hidden":false,"merged":[]}
["Log of changes to template (Environment Agency use only)"]
[]
["Date","Description of change","New version number and date"]
["2024-01-16","Air (periodic) tab: corrected default O2 reference from 6 to 11% ","Version 23.5a (for incinerators) - 16/01/2024"]
["2024-09-23","Air (periodic) tab: corrected symbol for Thallium to Tl"]
["2024-09-23","Air (periodic) tab: removed last year's references to different emission limit values applying from 03/12/23 and updated all relevant ELVs"]
["2024-09-23","Tabs for continuously monitored pollutants (HCl, SO2 etc.): changed terminology in table headings to improve clarity"]
["2024-09-23","Tabs for continuously monitored pollutants (HCl, SO2 etc.): removed last year's references to different emission limit values applying from 03/12/23 and updated all relevant ELVs"]
["2024-09-23","Perf 1 tab: updated formula for water usage to report m3 rather than litres and corrected error with formula copying operator name"]
["2024-09-23","Operational Summary tab: table added on start-ups and shut-downs"]
["2024-09-23","Operational Summary tab: table added on dioxins and mercury protocols"]
["2024-09-23","Operational Summary tab: table added on AST, QAL 2 and calibration functions"]
["2024-09-23","CO2 N2O tab: various changes made to notes to reflect the fact that most plants should now have calibrated CEMS and flow meters + some have C14 samplers and more up to date industry data","Version 24a (for incinerators) - 23/09/24"]
["2024-11-08","CO2 N2O tab: Changed the N2O CO2 equivalence factor from 298 to 265 in line with recently updated government greenhouse gas figures: https://www.gov.uk/government/publications/greenhouse-gas-reporting-conversion-factors-2024"]
["2024-11-08","CO2 N2O tab: Added an additional requirement for municipal EfW plants to state the yearly average biogenic percentage of the waste by mass, and reference to a document which sets out a methodology for calculating NCV of waste from the results of C14 sampling."]
["2024-11-08","Permit Compliance tab: Two additional columns added + explanatory notes to the table entitled \"Summary of non-compliances under the permit\" to allow CCS scores to be stated where relevant. "]
["2024-11-08","Residue Quality tab: Note added explaining application of TOC and LOI limits and asking operators to report both metrics where measured. ","Version 24.1a (for incinerators) - 08/11/24"]
["2024-11-27","Operational Summary tab: Tables on mercury & dioxins protocols and ASTs removed (covered instead by new tables added to updated Air 9 periodic monitoring form)","Version 24.2a (for incinerators) - 27/11/24"]
[]
[]
[]
[]
[]
[]
[]
[]
[]
[]
[]
[]
[]
[]
[]
[]
[]
[]
[]
[]
[]
[]
[]
[]
[]
[]
[]
[]
[]
[]
[]
[]
[]
[null,null,"2025-01-31"]